Department,Entity,Date of Payment,Expense Type,Expense Area,Supplier,Transaction Number,Amount,Description,Supplier Post Code,Supplier Type
"Department for Business, Energy and Industrial Strategy","Department for Business, Energy and Industrial Strategy",01/11/2019,Guarding and Security Services,Corporate Services - Commercial & Operations,SWISS POST SOLUTIONS LTD,283641,6540.57,MF Devolved Admin-Guarding and Security Services,TW10 6TP,VENDOR
"Department for Business, Energy and Industrial Strategy","Department for Business, Energy and Industrial Strategy",26/11/2019,Leadership & People Management,Corporate Services - Communications,Holy Trinity Brompton,291908,695,MF Devolved Admin-Leadership & People Management,SW7 1JA,VENDOR
"Department for Business, Energy and Industrial Strategy","Department for Business, Energy and Industrial Strategy",13/11/2019,Stationery,Business Sectors - Office for Life Sciences,Banner Group Limited,299269,147.2,MF Devolved Admin-Stationery,S9 1XU,VENDOR
"Department for Business, Energy and Industrial Strategy","Department for Business, Energy and Industrial Strategy",28/11/2019,Learning and Dev - CS Skills,Corporate Services - Human Resources,Cabinet Office,300675,3750,MF Devolved Admin-Learning and Dev - CS Skills,SW1A 2HQ,WGA ONLY
"Department for Business, Energy and Industrial Strategy","Department for Business, Energy and Industrial Strategy",26/11/2019,Learning and Dev - CS Skills,Corporate Services - Human Resources,Cabinet Office,300677,3750,MF Devolved Admin-Learning and Dev - CS Skills,SW1A 2HQ,WGA ONLY
"Department for Business, Energy and Industrial Strategy","Department for Business, Energy and Industrial Strategy",20/11/2019,Office Supplies,Energy and Security - Energy Development and Resilience,Banner Group Limited,301281,-78.77,MF Devolved Admin-Office Supplies,S9 1XU,VENDOR
"Department for Business, Energy and Industrial Strategy","Department for Business, Energy and Industrial Strategy",20/11/2019,Office Supplies,Energy and Security - Energy Development and Resilience,Banner Group Limited,301281,27.88,MF Devolved Admin-Office Supplies,S9 1XU,VENDOR
"Department for Business, Energy and Industrial Strategy","Department for Business, Energy and Industrial Strategy",20/11/2019,Office Supplies,Energy and Security - Energy Development and Resilience,Banner Group Limited,301281,87.97,MF Devolved Admin-Office Supplies,S9 1XU,VENDOR
"Department for Business, Energy and Industrial Strategy","Department for Business, Energy and Industrial Strategy",13/11/2019,Stationery,"Industrial Strategy, Science and Innovation - Industrial Strategy",Banner Group Limited,301693,-33,MF Devolved Admin-Stationery,NR3 1QU,VENDOR
"Department for Business, Energy and Industrial Strategy","Department for Business, Energy and Industrial Strategy",13/11/2019,Stationery,"Industrial Strategy, Science and Innovation - Industrial Strategy",Banner Group Limited,301693,148.56,MF Devolved Admin-Stationery,NR3 1QU,VENDOR
"Department for Business, Energy and Industrial Strategy","Department for Business, Energy and Industrial Strategy",26/11/2019,Subsistence UK,"Corporate Services - Digital, Data & Technology","Personal Expense, Name Withheld",302161,4.6,MF Devolved Admin-Subsistence UK,,EMPLOYEE
"Department for Business, Energy and Industrial Strategy","Department for Business, Energy and Industrial Strategy",26/11/2019,Subsistence UK,"Corporate Services - Digital, Data & Technology","Personal Expense, Name Withheld",302161,6.15,MF Devolved Admin-Subsistence UK,,EMPLOYEE
"Department for Business, Energy and Industrial Strategy","Department for Business, Energy and Industrial Strategy",26/11/2019,Taxi Services UK,"Corporate Services - Digital, Data & Technology","Personal Expense, Name Withheld",302161,9.3,MF Devolved Admin-Taxi Services UK,,EMPLOYEE
"Department for Business, Energy and Industrial Strategy","Department for Business, Energy and Industrial Strategy",15/11/2019,Hire of Interim Managers,Energy Transformation and Clean Growth - Industrial Energy,Allen Lane Ltd,305217,3191.23,EU Exit: No specific DExEU issue ADM-Hire of Interim Managers,BN11 2BW,VENDOR
"Department for Business, Energy and Industrial Strategy","Department for Business, Energy and Industrial Strategy",26/11/2019,Hire of Interim Managers,Corporate Services - Finance & Portfolio,Allen Lane Ltd,305220,-2804.6,EU Exit: No specific DExEU issue ADM-Hire of Interim Managers,BN11 2BW,VENDOR
"Department for Business, Energy and Industrial Strategy","Department for Business, Energy and Industrial Strategy",26/11/2019,Hire of Interim Managers,Corporate Services - Finance & Portfolio,Allen Lane Ltd,305220,-2804.6,EU Exit: Finance and Portfolio ADM-Hire of Interim Managers,BN11 2BW,VENDOR
"Department for Business, Energy and Industrial Strategy","Department for Business, Energy and Industrial Strategy",26/11/2019,Hire of Interim Managers,Corporate Services - Finance & Portfolio,Allen Lane Ltd,305220,3477.7,EU Exit: Finance and Portfolio ADM-Hire of Interim Managers,BN11 2BW,VENDOR
"Department for Business, Energy and Industrial Strategy","Department for Business, Energy and Industrial Strategy",26/11/2019,Hire of Interim Managers,Corporate Services - Finance & Portfolio,Allen Lane Ltd,305220,5497.02,EU Exit: No specific DExEU issue ADM-Hire of Interim Managers,BN11 2BW,VENDOR
"Department for Business, Energy and Industrial Strategy","Department for Business, Energy and Industrial Strategy",15/11/2019,Hire of Interim Managers,Energy Transformation and Clean Growth - Industrial Energy,Allen Lane Ltd,305226,3989.04,EU Exit: No specific DExEU issue ADM-Hire of Interim Managers,BN11 2BW,VENDOR
"Department for Business, Energy and Industrial Strategy","Department for Business, Energy and Industrial Strategy",08/11/2019,Consultancy Expenditure,Corporate Services - Organisational Development,Alexander Mann Solutions Ltd,305907,-698.93,MF Devolved Admin-Consultancy Expenditure,EC2N 3AQ,VENDOR
"Department for Business, Energy and Industrial Strategy","Department for Business, Energy and Industrial Strategy",08/11/2019,Consultancy Expenditure,Corporate Services - Organisational Development,Alexander Mann Solutions Ltd,305907,1537.65,MF Devolved Admin-Consultancy Expenditure,EC2N 3AQ,VENDOR
"Department for Business, Energy and Industrial Strategy","Department for Business, Energy and Industrial Strategy",22/11/2019,Learning and Dev - CS Skills,Corporate Services - Human Resources,Inline Policy Ltd,306275,-5500,EU Exit: No specific DExEU issue ADM-Learning and Dev - CS Skills,SE11 5JH,VENDOR
"Department for Business, Energy and Industrial Strategy","Department for Business, Energy and Industrial Strategy",22/11/2019,Learning and Dev - CS Skills,Corporate Services - Human Resources,Inline Policy Ltd,306275,8250,EU Exit: No specific DExEU issue ADM-Learning and Dev - CS Skills,SE11 5JH,VENDOR
"Department for Business, Energy and Industrial Strategy","Department for Business, Energy and Industrial Strategy",22/11/2019,Learning and Dev - CS Skills,Corporate Services - Human Resources,Inline Policy Ltd,306276,-5500,EU Exit: No specific DExEU issue ADM-Learning and Dev - CS Skills,SE11 5JH,VENDOR
"Department for Business, Energy and Industrial Strategy","Department for Business, Energy and Industrial Strategy",22/11/2019,Learning and Dev - CS Skills,Corporate Services - Human Resources,Inline Policy Ltd,306276,11000,EU Exit: No specific DExEU issue ADM-Learning and Dev - CS Skills,SE11 5JH,VENDOR
"Department for Business, Energy and Industrial Strategy","Department for Business, Energy and Industrial Strategy",22/11/2019,Learning and Dev - CS Skills,Corporate Services - Human Resources,Inline Policy Ltd,306277,-19250,EU Exit: No specific DExEU issue ADM-Learning and Dev - CS Skills,SE11 5JH,VENDOR
"Department for Business, Energy and Industrial Strategy","Department for Business, Energy and Industrial Strategy",22/11/2019,Learning and Dev - CS Skills,Corporate Services - Human Resources,Inline Policy Ltd,306277,27500,EU Exit: No specific DExEU issue ADM-Learning and Dev - CS Skills,SE11 5JH,VENDOR
"Department for Business, Energy and Industrial Strategy","Department for Business, Energy and Industrial Strategy",15/11/2019,Hire of Interim Managers,Energy Transformation and Clean Growth - Industrial Energy,Allen Lane Ltd,306669,3191.23,EU Exit: No specific DExEU issue ADM-Hire of Interim Managers,BN11 2BW,VENDOR
"Department for Business, Energy and Industrial Strategy","Department for Business, Energy and Industrial Strategy",15/11/2019,Hire of Interim Managers,Energy Transformation and Clean Growth - Industrial Energy,Allen Lane Ltd,307626,3989.04,EU Exit: No specific DExEU issue ADM-Hire of Interim Managers,BN11 2BW,VENDOR
"Department for Business, Energy and Industrial Strategy","Department for Business, Energy and Industrial Strategy",18/11/2019,Economic Consultancy & Research,EU Exit and Analysis - Analysis Directorate,Office for National Statistics,307958,8693.75,Research And Analytical Services-Economic Consultancy & Research,NP10 8XG,WGA ONLY
"Department for Business, Energy and Industrial Strategy","Department for Business, Energy and Industrial Strategy",15/11/2019,Hire of Interim Managers,Energy Transformation and Clean Growth - Industrial Energy,Allen Lane Ltd,308224,3989.04,EU Exit: No specific DExEU issue ADM-Hire of Interim Managers,BN11 2BW,VENDOR
"Department for Business, Energy and Industrial Strategy","Department for Business, Energy and Industrial Strategy",27/11/2019,Learning and Dev - CS Skills,Corporate Services - Human Resources,KPMG LLP,308317,2500,MF Non Devolved Admin-Learning and Dev - CS Skills,E14 5GL,VENDOR
"Department for Business, Energy and Industrial Strategy","Department for Business, Energy and Industrial Strategy",13/11/2019,Stationery,Corporate Services - Organisational Development,Banner Group Limited,308571,-4050.6,MF Devolved Admin-Stationery,NR3 1QU,VENDOR
"Department for Business, Energy and Industrial Strategy","Department for Business, Energy and Industrial Strategy",13/11/2019,Stationery,Corporate Services - Organisational Development,Banner Group Limited,308571,4211.33,MF Devolved Admin-Stationery,NR3 1QU,VENDOR
"Department for Business, Energy and Industrial Strategy","Department for Business, Energy and Industrial Strategy",13/11/2019,Stationery,Corporate Services - Organisational Development,Banner Group Limited,308583,-23223.44,MF Devolved Admin-Stationery,NR3 1QU,VENDOR
"Department for Business, Energy and Industrial Strategy","Department for Business, Energy and Industrial Strategy",13/11/2019,Stationery,Corporate Services - Organisational Development,Banner Group Limited,308583,23349.9,MF Devolved Admin-Stationery,NR3 1QU,VENDOR
"Department for Business, Energy and Industrial Strategy","Department for Business, Energy and Industrial Strategy",13/11/2019,Stationery,Corporate Services - Organisational Development,Banner Group Limited,308795,-6480.96,MF Devolved Admin-Stationery,NR3 1QU,VENDOR
"Department for Business, Energy and Industrial Strategy","Department for Business, Energy and Industrial Strategy",13/11/2019,Stationery,Corporate Services - Organisational Development,Banner Group Limited,308795,6517.82,MF Devolved Admin-Stationery,NR3 1QU,VENDOR
"Department for Business, Energy and Industrial Strategy","Department for Business, Energy and Industrial Strategy",15/11/2019,Hire of Interim Managers,Energy Transformation and Clean Growth - Industrial Energy,Allen Lane Ltd,308970,3191.23,EU Exit: No specific DExEU issue ADM-Hire of Interim Managers,BN11 2BW,VENDOR
"Department for Business, Energy and Industrial Strategy","Department for Business, Energy and Industrial Strategy",21/11/2019,Hire of Agency Staff,"Corporate Services - Policy, Delivery and Private Office",Alexander Mann Solutions Ltd,308979,30,MF Devolved Admin-Hire of Agency Staff,EC2N 3AQ,VENDOR
"Department for Business, Energy and Industrial Strategy","Department for Business, Energy and Industrial Strategy",26/11/2019,Hire of Agency Staff,Corporate Services - Human Resources,Alexander Mann Solutions Ltd,309001,30,EU Exit: No specific DExEU issue ADM-Hire of Agency Staff,EC2N 3AQ,VENDOR
"Department for Business, Energy and Industrial Strategy","Department for Business, Energy and Industrial Strategy",07/11/2019,R & D Current Grants to Private Sector - NPISH,"Industrial Strategy, Science and Innovation - International Science and Innovation",THE WELLCOME TRUST LTD,309354,-263255.59,Global Science Innovation and Education Programme-R & D Current Grants to Private Sector - NPISH,NW1 2BE,VENDOR
"Department for Business, Energy and Industrial Strategy","Department for Business, Energy and Industrial Strategy",07/11/2019,R & D Current Grants to Private Sector - NPISH,"Industrial Strategy, Science and Innovation - International Science and Innovation",THE WELLCOME TRUST LTD,309354,-2769.18,Global Science Innovation and Education Programme-R & D Current Grants to Private Sector - NPISH,NW1 2BE,VENDOR
"Department for Business, Energy and Industrial Strategy","Department for Business, Energy and Industrial Strategy",07/11/2019,R & D Current Grants to Private Sector - NPISH,"Industrial Strategy, Science and Innovation - International Science and Innovation",THE WELLCOME TRUST LTD,309354,5538.36,Global Science Innovation and Education Programme-R & D Current Grants to Private Sector - NPISH,NW1 2BE,VENDOR
"Department for Business, Energy and Industrial Strategy","Department for Business, Energy and Industrial Strategy",07/11/2019,R & D Current Grants to Private Sector - NPISH,"Industrial Strategy, Science and Innovation - International Science and Innovation",THE WELLCOME TRUST LTD,309354,350392.08,Global Science Innovation and Education Programme-R & D Current Grants to Private Sector - NPISH,NW1 2BE,VENDOR
"Department for Business, Energy and Industrial Strategy","Department for Business, Energy and Industrial Strategy",07/11/2019,Other Professional Services,Market Frameworks - Office for Product Safety and Standards,Andrew Haslett Ltd,309410,3066.78,OPSS: National Capacity Scientific and Technical-Other Professional Services,LL37 2JQ,VENDOR
"Department for Business, Energy and Industrial Strategy","Department for Business, Energy and Industrial Strategy",12/11/2019,Capital Grants to Private Sector - Companies,Energy Transformation and Clean Growth - Science and Innovation,ORE CATAPULT DEVELOPMENT SERVICES LTD T/A ODSL,309927,99515.47,Offshore Wind-Capital Grants to Private Sector - Companies,NE24 1LZ,GRANT
"Department for Business, Energy and Industrial Strategy","Department for Business, Energy and Industrial Strategy",08/11/2019,Consultancy Expenditure,Corporate Services - Organisational Development,Alexander Mann Solutions Ltd,310004,-18.19,MF Devolved Admin-Consultancy Expenditure,EC2N 3AQ,VENDOR
"Department for Business, Energy and Industrial Strategy","Department for Business, Energy and Industrial Strategy",08/11/2019,Consultancy Expenditure,Corporate Services - Organisational Development,Alexander Mann Solutions Ltd,310004,48.19,MF Devolved Admin-Consultancy Expenditure,EC2N 3AQ,VENDOR
"Department for Business, Energy and Industrial Strategy","Department for Business, Energy and Industrial Strategy",15/11/2019,Hire of Interim Managers,Energy Transformation and Clean Growth - Industrial Energy,Allen Lane Ltd,310225,3191.23,EU Exit: No specific DExEU issue ADM-Hire of Interim Managers,BN11 2BW,VENDOR
"Department for Business, Energy and Industrial Strategy","Department for Business, Energy and Industrial Strategy",29/11/2019,Purchase of Intangible Software,"Corporate Services - Digital, Data & Technology",Amazon Web Services Inc,310227,339.9,MF Devolved Admin-Purchase of Intangible Software,WA 98109-5210,VENDOR
"Department for Business, Energy and Industrial Strategy","Department for Business, Energy and Industrial Strategy",07/11/2019,R & D Contractors,Energy Transformation and Clean Growth - Science and Innovation,Alexander Mann Solutions Ltd,310233,5012.15,Climate Change Science-R & D Contractors,EC2N 3AQ,VENDOR
"Department for Business, Energy and Industrial Strategy","Department for Business, Energy and Industrial Strategy",12/11/2019,Hire of Interim Managers,Corporate Services - Finance & Portfolio,Allen Lane Ltd,310274,3191.23,EU Exit Core BEIS Staff: Corporate Services ADM-Hire of Interim Managers,BN11 2BW,VENDOR
"Department for Business, Energy and Industrial Strategy","Department for Business, Energy and Industrial Strategy",13/11/2019,ICT Outsourcing & Maintenance/Support,EU Exit and Analysis - Analysis Directorate,People Source Consulting Ltd,310960,11385,MF Devolved Admin-ICT Outsourcing & Maintenance/Support,BS1 6BA,VENDOR
"Department for Business, Energy and Industrial Strategy","Department for Business, Energy and Industrial Strategy",15/11/2019,Hire of Interim Managers,Energy Transformation and Clean Growth - Industrial Energy,Allen Lane Ltd,311126,3989.04,EU Exit: No specific DExEU issue ADM-Hire of Interim Managers,BN11 2BW,VENDOR
"Department for Business, Energy and Industrial Strategy","Department for Business, Energy and Industrial Strategy",20/11/2019,Stationery,"Corporate Services - Digital, Data & Technology",Banner Group Limited,311155,579,MF Devolved Admin-Stationery,NR3 1QU,VENDOR
"Department for Business, Energy and Industrial Strategy","Department for Business, Energy and Industrial Strategy",27/11/2019,Purchase of Intangible Software,"Corporate Services - Digital, Data & Technology",SPECIALIST COMPUTER CENTRES (SSC),311193,1716.9,MF Devolved Admin-Purchase of Intangible Software,B11 2LE,VENDOR
"Department for Business, Energy and Industrial Strategy","Department for Business, Energy and Industrial Strategy",27/11/2019,Purchase of Intangible Software,"Corporate Services - Digital, Data & Technology",SPECIALIST COMPUTER CENTRES (SSC),311194,661.9,MF Devolved Admin-Purchase of Intangible Software,B11 2LE,VENDOR
"Department for Business, Energy and Industrial Strategy","Department for Business, Energy and Industrial Strategy",08/11/2019,Consultancy Expenditure,Corporate Services - Organisational Development,Alexander Mann Solutions Ltd,311196,861.38,MF Devolved Admin-Consultancy Expenditure,EC2N 3AQ,VENDOR
"Department for Business, Energy and Industrial Strategy","Department for Business, Energy and Industrial Strategy",06/11/2019,Other Staff Welfare Costs,Energy and Security - Energy Development and Resilience,ABERMED LTD,311453,130.8,Offshore Environmental Permits-Other Staff Welfare Costs,AB32 6FE,VENDOR
"Department for Business, Energy and Industrial Strategy","Department for Business, Energy and Industrial Strategy",06/11/2019,Other Staff Welfare Costs,Energy and Security - Energy Development and Resilience,ABERMED LTD,311454,130.8,Offshore Environmental Permits-Other Staff Welfare Costs,AB32 6FE,VENDOR
"Department for Business, Energy and Industrial Strategy","Department for Business, Energy and Industrial Strategy",06/11/2019,Other Staff Welfare Costs,Energy and Security - Energy Development and Resilience,ABERMED LTD,311456,108,Offshore Environmental Permits-Other Staff Welfare Costs,AB32 6FE,VENDOR
"Department for Business, Energy and Industrial Strategy","Department for Business, Energy and Industrial Strategy",06/11/2019,Other Staff Welfare Costs,Energy and Security - Energy Development and Resilience,ABERMED LTD,311457,318,Offshore Environmental Permits-Other Staff Welfare Costs,AB32 6FE,VENDOR
"Department for Business, Energy and Industrial Strategy","Department for Business, Energy and Industrial Strategy",06/11/2019,Other Staff Welfare Costs,Energy and Security - Energy Development and Resilience,ABERMED LTD,311459,130.8,Offshore Environmental Permits-Other Staff Welfare Costs,AB32 6FE,VENDOR
"Department for Business, Energy and Industrial Strategy","Department for Business, Energy and Industrial Strategy",07/11/2019,Other Staff Welfare Costs,Energy and Security - Energy Development and Resilience,ABERMED LTD,311490,130.8,Offshore Environmental Permits-Other Staff Welfare Costs,AB32 6FE,VENDOR
"Department for Business, Energy and Industrial Strategy","Department for Business, Energy and Industrial Strategy",15/11/2019,Clearing Account   - Cost - Computer Equipment,"Corporate Services - Digital, Data & Technology",Bechtle Direct Ltd,311501,1081.63,Digital Infrastructure and Maintenance-Clearing Account   - Cost - Computer Equipment,SN14 0GF,VENDOR
"Department for Business, Energy and Industrial Strategy","Department for Business, Energy and Industrial Strategy",15/11/2019,Computer Consumables,"Corporate Services - Digital, Data & Technology",Bechtle Direct Ltd,311501,1344,MF Devolved Admin-Computer Consumables,SN14 0GF,VENDOR
"Department for Business, Energy and Industrial Strategy","Department for Business, Energy and Industrial Strategy",15/11/2019,Computer Consumables,"Corporate Services - Digital, Data & Technology",Bechtle Direct Ltd,311501,1920,MF Devolved Admin-Computer Consumables,SN14 0GF,VENDOR
"Department for Business, Energy and Industrial Strategy","Department for Business, Energy and Industrial Strategy",06/11/2019,Other Staff Welfare Costs,Energy and Security - Energy Development and Resilience,ABERMED LTD,311511,55.2,Offshore Environmental Permits-Other Staff Welfare Costs,AB32 6FE,VENDOR
"Department for Business, Energy and Industrial Strategy","Department for Business, Energy and Industrial Strategy",06/11/2019,Other Staff Welfare Costs,Energy and Security - Energy Development and Resilience,ABERMED LTD,311512,70.8,Offshore Environmental Permits-Other Staff Welfare Costs,AB32 6FE,VENDOR
"Department for Business, Energy and Industrial Strategy","Department for Business, Energy and Industrial Strategy",06/11/2019,Other Staff Welfare Costs,Energy and Security - Energy Development and Resilience,ABERMED LTD,311513,130.8,Offshore Environmental Permits-Other Staff Welfare Costs,AB32 6FE,VENDOR
"Department for Business, Energy and Industrial Strategy","Department for Business, Energy and Industrial Strategy",06/11/2019,Other Staff Welfare Costs,Energy and Security - Energy Development and Resilience,ABERMED LTD,311514,146.4,Offshore Environmental Permits-Other Staff Welfare Costs,AB32 6FE,VENDOR
"Department for Business, Energy and Industrial Strategy","Department for Business, Energy and Industrial Strategy",06/11/2019,Other Staff Welfare Costs,Energy and Security - Energy Development and Resilience,ABERMED LTD,311521,130.8,Offshore Environmental Permits-Other Staff Welfare Costs,AB32 6FE,VENDOR
"Department for Business, Energy and Industrial Strategy","Department for Business, Energy and Industrial Strategy",06/11/2019,Other Staff Welfare Costs,Energy and Security - Energy Development and Resilience,ABERMED LTD,311522,146.4,Offshore Environmental Permits-Other Staff Welfare Costs,AB32 6FE,VENDOR
"Department for Business, Energy and Industrial Strategy","Department for Business, Energy and Industrial Strategy",06/11/2019,Other Staff Welfare Costs,Energy and Security - Energy Development and Resilience,ABERMED LTD,311523,146.4,Offshore Environmental Permits-Other Staff Welfare Costs,AB32 6FE,VENDOR
"Department for Business, Energy and Industrial Strategy","Department for Business, Energy and Industrial Strategy",06/11/2019,Other Staff Welfare Costs,Energy and Security - Energy Development and Resilience,ABERMED LTD,311524,146.4,Offshore Environmental Permits-Other Staff Welfare Costs,AB32 6FE,VENDOR
"Department for Business, Energy and Industrial Strategy","Department for Business, Energy and Industrial Strategy",06/11/2019,Other Staff Welfare Costs,Energy and Security - Energy Development and Resilience,ABERMED LTD,311525,146.4,Offshore Environmental Permits-Other Staff Welfare Costs,AB32 6FE,VENDOR
"Department for Business, Energy and Industrial Strategy","Department for Business, Energy and Industrial Strategy",07/11/2019,Other Staff Welfare Costs,Energy and Security - Energy Development and Resilience,ABERMED LTD,311526,178.8,Offshore Environmental Permits-Other Staff Welfare Costs,AB32 6FE,VENDOR
"Department for Business, Energy and Industrial Strategy","Department for Business, Energy and Industrial Strategy",13/11/2019,ICT Outsourcing & Maintenance/Support,EU Exit and Analysis - Analysis Directorate,People Source Consulting Ltd,311561,-10500,MF Devolved Admin-ICT Outsourcing & Maintenance/Support,BS1 6BA,VENDOR
"Department for Business, Energy and Industrial Strategy","Department for Business, Energy and Industrial Strategy",13/11/2019,ICT Outsourcing & Maintenance/Support,EU Exit and Analysis - Analysis Directorate,People Source Consulting Ltd,311561,21000,MF Devolved Admin-ICT Outsourcing & Maintenance/Support,BS1 6BA,VENDOR
"Department for Business, Energy and Industrial Strategy","Department for Business, Energy and Industrial Strategy",20/11/2019,Recruitment Advice and Services,Corporate Services - Human Resources,Cabinet Office,311725,5600,MF Devolved Admin-Recruitment Advice and Services,FY5 3FW,WGA ONLY
"Department for Business, Energy and Industrial Strategy","Department for Business, Energy and Industrial Strategy",20/11/2019,Recruitment Advice and Services,Corporate Services - Human Resources,Cabinet Office,311725,7582.25,MF Devolved Admin-Recruitment Advice and Services,FY5 3FW,WGA ONLY
"Department for Business, Energy and Industrial Strategy","Department for Business, Energy and Industrial Strategy",12/11/2019,Stationery,Business Sectors - Cities and Local Growth,Banner Group Limited,311928,3.46,MF Devolved Admin-Stationery,S9 1XU,VENDOR
"Department for Business, Energy and Industrial Strategy","Department for Business, Energy and Industrial Strategy",07/11/2019,Training And Development Expenditure,"Industrial Strategy, Science and Innovation - Industrial Strategy",Dod's Parliamentary Communications Ltd,311929,354,MF Devolved Admin-Training And Development Expenditure,SE1 9SG,VENDOR
"Department for Business, Energy and Industrial Strategy","Department for Business, Energy and Industrial Strategy",05/11/2019,Sponsorship Support,Business Sectors - Advanced Manufacturing,Construction Industry Research and Information Association,311953,-22500,R&C Sponsorship-Sponsorship Support,EC1A 9PN,VENDOR
"Department for Business, Energy and Industrial Strategy","Department for Business, Energy and Industrial Strategy",05/11/2019,Sponsorship Support,Business Sectors - Advanced Manufacturing,Construction Industry Research and Information Association,311953,28500,R&C Sponsorship-Sponsorship Support,EC1A 9PN,VENDOR
"Department for Business, Energy and Industrial Strategy","Department for Business, Energy and Industrial Strategy",15/11/2019,Hire of Interim Managers,Energy Transformation and Clean Growth - Industrial Energy,Allen Lane Ltd,311955,3989.04,EU Exit: No specific DExEU issue ADM-Hire of Interim Managers,BN11 2BW,VENDOR
"Department for Business, Energy and Industrial Strategy","Department for Business, Energy and Industrial Strategy",11/11/2019,ICT Outsourcing & Maintenance/Support,EU Exit and Analysis - Analysis Directorate,PROGRAVITAS LTD,312297,9824.6,MF Devolved Admin-ICT Outsourcing & Maintenance/Support,SG8 6DT,VENDOR
"Department for Business, Energy and Industrial Strategy","Department for Business, Energy and Industrial Strategy",11/11/2019,ICT Outsourcing & Maintenance/Support,EU Exit and Analysis - Analysis Directorate,PROGRAVITAS LTD,312297,11024.8,MF Devolved Admin-ICT Outsourcing & Maintenance/Support,SG8 6DT,VENDOR
"Department for Business, Energy and Industrial Strategy","Department for Business, Energy and Industrial Strategy",27/11/2019,Learning and Dev - CS Skills,Corporate Services - Human Resources,Korn Ferry (UK) Ltd,312298,265,MF Non Devolved Admin-Learning and Dev - CS Skills,SW1Y 6QB,VENDOR
"Department for Business, Energy and Industrial Strategy","Department for Business, Energy and Industrial Strategy",22/11/2019,R & D Outsourced Other,Energy Transformation and Clean Growth - Science and Innovation,UNIVERSITY OF SHEFFIELD,312516,106177.2,Innovation Delivery Nuclear Research and Development-R & D Outsourced Other,S10 2TN,GRANT
"Department for Business, Energy and Industrial Strategy","Department for Business, Energy and Industrial Strategy",21/11/2019,R & D Current Grants to Central Government,"Industrial Strategy, Science and Innovation - International Science and Innovation",Foreign and Commonwealth Office (FCO),312599,239.06,NEWTON FUND - China-R & D Current Grants to Central Government,MK10 1PX,WGA ONLY
"Department for Business, Energy and Industrial Strategy","Department for Business, Energy and Industrial Strategy",13/11/2019,External Training,Market Frameworks - Office for Product Safety and Standards,Radman Associates Ltd,312749,1150,OPSS: National Capacity Organisational Cross Cutting-External Training,SK10 5JR,VENDOR
"Department for Business, Energy and Industrial Strategy","Department for Business, Energy and Industrial Strategy",05/11/2019,Marketing and Media,Corporate Services - Communications,23RED LTD,312847,-50193.6,Corporate Presentation-Marketing and Media,N1 9BG,VENDOR
"Department for Business, Energy and Industrial Strategy","Department for Business, Energy and Industrial Strategy",05/11/2019,Marketing and Media,Corporate Services - Communications,23RED LTD,312847,100386.6,Corporate Presentation-Marketing and Media,N1 9BG,VENDOR
"Department for Business, Energy and Industrial Strategy","Department for Business, Energy and Industrial Strategy",14/11/2019,Health and Safety Consultancy,Corporate Services - Human Resources,GENIUS WITHIN CIC,312928,-393.75,MF Devolved Admin-Health and Safety Consultancy,BN7 3AL,GRANT
"Department for Business, Energy and Industrial Strategy","Department for Business, Energy and Industrial Strategy",25/11/2019,Advertising,Corporate Services - Communications,Omnicom Media Group UK Ltd T/A Manning Gottlieb OMD,313025,-71533.94,EU Exit: CPG ADM-Advertising,SE1 0SW,VENDOR
"Department for Business, Energy and Industrial Strategy","Department for Business, Energy and Industrial Strategy",25/11/2019,Advertising,Corporate Services - Communications,Omnicom Media Group UK Ltd T/A Manning Gottlieb OMD,313025,64.86,EU Exit: CPG ADM-Advertising,SE1 0SW,VENDOR
"Department for Business, Energy and Industrial Strategy","Department for Business, Energy and Industrial Strategy",25/11/2019,Advertising,Corporate Services - Communications,Omnicom Media Group UK Ltd T/A Manning Gottlieb OMD,313025,143003.02,EU Exit: CPG ADM-Advertising,SE1 0SW,VENDOR
"Department for Business, Energy and Industrial Strategy","Department for Business, Energy and Industrial Strategy",15/11/2019,Hire of Interim Managers,Energy Transformation and Clean Growth - Industrial Energy,Allen Lane Ltd,313154,3191.23,EU Exit: No specific DExEU issue ADM-Hire of Interim Managers,BN11 2BW,VENDOR
"Department for Business, Energy and Industrial Strategy","Department for Business, Energy and Industrial Strategy",13/11/2019,Stationery,"Industrial Strategy, Science and Innovation - Industrial Strategy",Banner Group Limited,313166,-18,MF Devolved Admin-Stationery,NR3 1QU,VENDOR
"Department for Business, Energy and Industrial Strategy","Department for Business, Energy and Industrial Strategy",13/11/2019,Stationery,"Industrial Strategy, Science and Innovation - Industrial Strategy",Banner Group Limited,313166,109.92,MF Devolved Admin-Stationery,NR3 1QU,VENDOR
"Department for Business, Energy and Industrial Strategy","Department for Business, Energy and Industrial Strategy",13/11/2019,Training And Development Expenditure,EU Exit and Analysis - Analysis Directorate,CALDER CONFERENCES LTD,313167,4380,MF Devolved Admin-Training And Development Expenditure,LS16 6RF,VENDOR
"Department for Business, Energy and Industrial Strategy","Department for Business, Energy and Industrial Strategy",15/11/2019,Stationery,"Industrial Strategy, Science and Innovation - Industrial Strategy",Banner Group Limited,313292,-39.96,MF Devolved Admin-Stationery,NR3 1QU,VENDOR
"Department for Business, Energy and Industrial Strategy","Department for Business, Energy and Industrial Strategy",15/11/2019,Stationery,"Industrial Strategy, Science and Innovation - Industrial Strategy",Banner Group Limited,313292,-4,MF Devolved Admin-Stationery,NR3 1QU,VENDOR
"Department for Business, Energy and Industrial Strategy","Department for Business, Energy and Industrial Strategy",15/11/2019,Stationery,Corporate Services - Commercial & Operations,Banner Group Limited,313292,37.42,MF Devolved Admin-Stationery,NR3 1QU,VENDOR
"Department for Business, Energy and Industrial Strategy","Department for Business, Energy and Industrial Strategy",15/11/2019,Stationery,"Industrial Strategy, Science and Innovation - Industrial Strategy",Banner Group Limited,313292,92.39,MF Devolved Admin-Stationery,NR3 1QU,VENDOR
"Department for Business, Energy and Industrial Strategy","Department for Business, Energy and Industrial Strategy",08/11/2019,Purchase of Intangible Software,"Corporate Services - Digital, Data & Technology",Slack Technologies Ltd,313656,10100.22,MF Devolved Admin-Purchase of Intangible Software,Dublin 2,VENDOR
"Department for Business, Energy and Industrial Strategy","Department for Business, Energy and Industrial Strategy",15/11/2019,Hire of Interim Managers,Energy Transformation and Clean Growth - Industrial Energy,Allen Lane Ltd,314045,3989.04,EU Exit: No specific DExEU issue ADM-Hire of Interim Managers,BN11 2BW,VENDOR
"Department for Business, Energy and Industrial Strategy","Department for Business, Energy and Industrial Strategy",08/11/2019,Additions  - Cost - Information Technology,Market Frameworks - Office for Product Safety and Standards,L.A. International Computer Consultants Ltd,314047,18000,OPSS: Primary Authority-Additions  - Cost - Information Technology,ST1 5UB,VENDOR
"Department for Business, Energy and Industrial Strategy","Department for Business, Energy and Industrial Strategy",08/11/2019,Economic Consultancy & Research,Business Sectors - Infrastructure and Materials,SQW LTD T/A SQW CONSULTING,314064,17238.75,MRI: Sponsorship-Economic Consultancy & Research,OX1 1BY,VENDOR
"Department for Business, Energy and Industrial Strategy","Department for Business, Energy and Industrial Strategy",11/11/2019,Recruitment Advice and Services,Business Sectors - EU Exit Business Readiness,Alexander Mann Solutions Ltd,314200,3024.25,EU Exit Core BEIS Staff: EU Exit Programme ADM-Recruitment Advice and Services,EC2N 3AQ,VENDOR
"Department for Business, Energy and Industrial Strategy","Department for Business, Energy and Industrial Strategy",21/11/2019,Stationery,Corporate Services - Legal Services,Banner Group Limited,314435,566.96,MF Devolved Admin-Stationery,NR3 1QU,VENDOR
"Department for Business, Energy and Industrial Strategy","Department for Business, Energy and Industrial Strategy",13/11/2019,Subsistence UK,Market Frameworks - Office for Product Safety and Standards,"Personal Expense, Name Withheld",314594,10,MF Devolved Admin-Subsistence UK,,EMPLOYEE
"Department for Business, Energy and Industrial Strategy","Department for Business, Energy and Industrial Strategy",13/11/2019,Subsistence UK,Market Frameworks - Office for Product Safety and Standards,"Personal Expense, Name Withheld",314594,15,MF Devolved Admin-Subsistence UK,,EMPLOYEE
"Department for Business, Energy and Industrial Strategy","Department for Business, Energy and Industrial Strategy",11/11/2019,R & D Current Grants to Central Government,"Industrial Strategy, Science and Innovation - International Science and Innovation",Foreign and Commonwealth Office (FCO),314664,1781.96,NEWTON FUND - Indonesia-R & D Current Grants to Central Government,MK10 1PX,WGA ONLY
"Department for Business, Energy and Industrial Strategy","Department for Business, Energy and Industrial Strategy",11/11/2019,R & D Current Grants to Central Government,"Industrial Strategy, Science and Innovation - International Science and Innovation",Foreign and Commonwealth Office (FCO),314665,7.6,Newton Fund - Peru-R & D Current Grants to Central Government,MK10 1PX,WGA ONLY
"Department for Business, Energy and Industrial Strategy","Department for Business, Energy and Industrial Strategy",11/11/2019,R & D Current Grants to Central Government,"Industrial Strategy, Science and Innovation - International Science and Innovation",Foreign and Commonwealth Office (FCO),314666,98.37,Newton Fund - Peru-R & D Current Grants to Central Government,MK10 1PX,WGA ONLY
"Department for Business, Energy and Industrial Strategy","Department for Business, Energy and Industrial Strategy",11/11/2019,R & D Current Grants to Central Government,"Industrial Strategy, Science and Innovation - International Science and Innovation",Foreign and Commonwealth Office (FCO),314667,119.14,NEWTON FUND - Turkey-R & D Current Grants to Central Government,MK10 1PX,WGA ONLY
"Department for Business, Energy and Industrial Strategy","Department for Business, Energy and Industrial Strategy",11/11/2019,R & D Current Grants to Central Government,"Industrial Strategy, Science and Innovation - International Science and Innovation",Foreign and Commonwealth Office (FCO),314668,11.23,NEWTON FUND - Turkey-R & D Current Grants to Central Government,MK10 1PX,WGA ONLY
"Department for Business, Energy and Industrial Strategy","Department for Business, Energy and Industrial Strategy",11/11/2019,R & D Current Grants to Central Government,"Industrial Strategy, Science and Innovation - International Science and Innovation",Foreign and Commonwealth Office (FCO),314669,11.92,NEWTON FUND - Turkey-R & D Current Grants to Central Government,MK10 1PX,WGA ONLY
"Department for Business, Energy and Industrial Strategy","Department for Business, Energy and Industrial Strategy",11/11/2019,R & D Current Grants to Central Government,"Industrial Strategy, Science and Innovation - International Science and Innovation",Foreign and Commonwealth Office (FCO),314670,1.46,NEWTON FUND - Brazil-R & D Current Grants to Central Government,MK10 1PX,WGA ONLY
"Department for Business, Energy and Industrial Strategy","Department for Business, Energy and Industrial Strategy",11/11/2019,R & D Current Grants to Central Government,"Industrial Strategy, Science and Innovation - International Science and Innovation",Foreign and Commonwealth Office (FCO),314671,2.5,NEWTON FUND - Brazil-R & D Current Grants to Central Government,MK10 1PX,WGA ONLY
"Department for Business, Energy and Industrial Strategy","Department for Business, Energy and Industrial Strategy",11/11/2019,R & D Current Grants to Central Government,"Industrial Strategy, Science and Innovation - International Science and Innovation",Foreign and Commonwealth Office (FCO),314672,4.08,NEWTON FUND - Brazil-R & D Current Grants to Central Government,MK10 1PX,WGA ONLY
"Department for Business, Energy and Industrial Strategy","Department for Business, Energy and Industrial Strategy",11/11/2019,R & D Current Grants to Central Government,"Industrial Strategy, Science and Innovation - International Science and Innovation",Foreign and Commonwealth Office (FCO),314673,4.91,NEWTON FUND - Brazil-R & D Current Grants to Central Government,MK10 1PX,WGA ONLY
"Department for Business, Energy and Industrial Strategy","Department for Business, Energy and Industrial Strategy",11/11/2019,R & D Current Grants to Central Government,"Industrial Strategy, Science and Innovation - International Science and Innovation",Foreign and Commonwealth Office (FCO),314674,5.36,NEWTON FUND - Brazil-R & D Current Grants to Central Government,MK10 1PX,WGA ONLY
"Department for Business, Energy and Industrial Strategy","Department for Business, Energy and Industrial Strategy",11/11/2019,R & D Current Grants to Central Government,"Industrial Strategy, Science and Innovation - International Science and Innovation",Foreign and Commonwealth Office (FCO),314675,8.02,NEWTON FUND - Brazil-R & D Current Grants to Central Government,MK10 1PX,WGA ONLY
"Department for Business, Energy and Industrial Strategy","Department for Business, Energy and Industrial Strategy",11/11/2019,R & D Current Grants to Central Government,"Industrial Strategy, Science and Innovation - International Science and Innovation",Foreign and Commonwealth Office (FCO),314676,10.8,NEWTON FUND - Brazil-R & D Current Grants to Central Government,MK10 1PX,WGA ONLY
"Department for Business, Energy and Industrial Strategy","Department for Business, Energy and Industrial Strategy",11/11/2019,R & D Current Grants to Central Government,"Industrial Strategy, Science and Innovation - International Science and Innovation",Foreign and Commonwealth Office (FCO),314677,13.83,NEWTON FUND - Brazil-R & D Current Grants to Central Government,MK10 1PX,WGA ONLY
"Department for Business, Energy and Industrial Strategy","Department for Business, Energy and Industrial Strategy",11/11/2019,R & D Current Grants to Central Government,"Industrial Strategy, Science and Innovation - International Science and Innovation",Foreign and Commonwealth Office (FCO),314678,15.52,NEWTON FUND - Brazil-R & D Current Grants to Central Government,MK10 1PX,WGA ONLY
"Department for Business, Energy and Industrial Strategy","Department for Business, Energy and Industrial Strategy",11/11/2019,R & D Current Grants to Central Government,"Industrial Strategy, Science and Innovation - International Science and Innovation",Foreign and Commonwealth Office (FCO),314679,74.55,NEWTON FUND - Brazil-R & D Current Grants to Central Government,MK10 1PX,WGA ONLY
"Department for Business, Energy and Industrial Strategy","Department for Business, Energy and Industrial Strategy",11/11/2019,R & D Current Grants to Central Government,"Industrial Strategy, Science and Innovation - International Science and Innovation",Foreign and Commonwealth Office (FCO),314680,2,NEWTON FUND - Brazil-R & D Current Grants to Central Government,MK10 1PX,WGA ONLY
"Department for Business, Energy and Industrial Strategy","Department for Business, Energy and Industrial Strategy",11/11/2019,R & D Current Grants to Central Government,"Industrial Strategy, Science and Innovation - International Science and Innovation",Foreign and Commonwealth Office (FCO),314681,2.06,NEWTON FUND - Brazil-R & D Current Grants to Central Government,MK10 1PX,WGA ONLY
"Department for Business, Energy and Industrial Strategy","Department for Business, Energy and Industrial Strategy",11/11/2019,R & D Current Grants to Central Government,"Industrial Strategy, Science and Innovation - International Science and Innovation",Foreign and Commonwealth Office (FCO),314682,2.43,NEWTON FUND - Brazil-R & D Current Grants to Central Government,MK10 1PX,WGA ONLY
"Department for Business, Energy and Industrial Strategy","Department for Business, Energy and Industrial Strategy",11/11/2019,R & D Current Grants to Central Government,"Industrial Strategy, Science and Innovation - International Science and Innovation",Foreign and Commonwealth Office (FCO),314683,4.28,NEWTON FUND - Brazil-R & D Current Grants to Central Government,MK10 1PX,WGA ONLY
"Department for Business, Energy and Industrial Strategy","Department for Business, Energy and Industrial Strategy",11/11/2019,R & D Current Grants to Central Government,"Industrial Strategy, Science and Innovation - International Science and Innovation",Foreign and Commonwealth Office (FCO),314684,4.38,NEWTON FUND - Brazil-R & D Current Grants to Central Government,MK10 1PX,WGA ONLY
"Department for Business, Energy and Industrial Strategy","Department for Business, Energy and Industrial Strategy",11/11/2019,R & D Current Grants to Central Government,"Industrial Strategy, Science and Innovation - International Science and Innovation",Foreign and Commonwealth Office (FCO),314685,5.27,NEWTON FUND - Brazil-R & D Current Grants to Central Government,MK10 1PX,WGA ONLY
"Department for Business, Energy and Industrial Strategy","Department for Business, Energy and Industrial Strategy",11/11/2019,R & D Current Grants to Central Government,"Industrial Strategy, Science and Innovation - International Science and Innovation",Foreign and Commonwealth Office (FCO),314686,5.28,NEWTON FUND - Brazil-R & D Current Grants to Central Government,MK10 1PX,WGA ONLY
"Department for Business, Energy and Industrial Strategy","Department for Business, Energy and Industrial Strategy",11/11/2019,R & D Current Grants to Central Government,"Industrial Strategy, Science and Innovation - International Science and Innovation",Foreign and Commonwealth Office (FCO),314687,5.52,NEWTON FUND - Brazil-R & D Current Grants to Central Government,MK10 1PX,WGA ONLY
"Department for Business, Energy and Industrial Strategy","Department for Business, Energy and Industrial Strategy",11/11/2019,R & D Current Grants to Central Government,"Industrial Strategy, Science and Innovation - International Science and Innovation",Foreign and Commonwealth Office (FCO),314688,5.55,NEWTON FUND - Brazil-R & D Current Grants to Central Government,MK10 1PX,WGA ONLY
"Department for Business, Energy and Industrial Strategy","Department for Business, Energy and Industrial Strategy",11/11/2019,R & D Current Grants to Central Government,"Industrial Strategy, Science and Innovation - International Science and Innovation",Foreign and Commonwealth Office (FCO),314689,7.17,NEWTON FUND - Brazil-R & D Current Grants to Central Government,MK10 1PX,WGA ONLY
"Department for Business, Energy and Industrial Strategy","Department for Business, Energy and Industrial Strategy",11/11/2019,R & D Current Grants to Central Government,"Industrial Strategy, Science and Innovation - International Science and Innovation",Foreign and Commonwealth Office (FCO),314690,22.09,NEWTON FUND - Brazil-R & D Current Grants to Central Government,MK10 1PX,WGA ONLY
"Department for Business, Energy and Industrial Strategy","Department for Business, Energy and Industrial Strategy",11/11/2019,R & D Current Grants to Central Government,"Industrial Strategy, Science and Innovation - International Science and Innovation",Foreign and Commonwealth Office (FCO),314691,11.15,NEWTON FUND - Malaysia-R & D Current Grants to Central Government,MK10 1PX,WGA ONLY
"Department for Business, Energy and Industrial Strategy","Department for Business, Energy and Industrial Strategy",11/11/2019,R & D Current Grants to Central Government,"Industrial Strategy, Science and Innovation - International Science and Innovation",Foreign and Commonwealth Office (FCO),314692,2656.52,NEWTON FUND - Malaysia-R & D Current Grants to Central Government,MK10 1PX,WGA ONLY
"Department for Business, Energy and Industrial Strategy","Department for Business, Energy and Industrial Strategy",11/11/2019,R & D Current Grants to Central Government,"Industrial Strategy, Science and Innovation - International Science and Innovation",Foreign and Commonwealth Office (FCO),314693,1.85,NEWTON FUND - Malaysia-R & D Current Grants to Central Government,MK10 1PX,WGA ONLY
"Department for Business, Energy and Industrial Strategy","Department for Business, Energy and Industrial Strategy",11/11/2019,R & D Current Grants to Central Government,"Industrial Strategy, Science and Innovation - International Science and Innovation",Foreign and Commonwealth Office (FCO),314694,2.21,NEWTON FUND - Malaysia-R & D Current Grants to Central Government,MK10 1PX,WGA ONLY
"Department for Business, Energy and Industrial Strategy","Department for Business, Energy and Industrial Strategy",11/11/2019,R & D Current Grants to Central Government,"Industrial Strategy, Science and Innovation - International Science and Innovation",Foreign and Commonwealth Office (FCO),314695,2.21,NEWTON FUND - Malaysia-R & D Current Grants to Central Government,MK10 1PX,WGA ONLY
"Department for Business, Energy and Industrial Strategy","Department for Business, Energy and Industrial Strategy",11/11/2019,R & D Current Grants to Central Government,"Industrial Strategy, Science and Innovation - International Science and Innovation",Foreign and Commonwealth Office (FCO),314700,2.21,NEWTON FUND - Malaysia-R & D Current Grants to Central Government,MK10 1PX,WGA ONLY
"Department for Business, Energy and Industrial Strategy","Department for Business, Energy and Industrial Strategy",11/11/2019,R & D Current Grants to Central Government,"Industrial Strategy, Science and Innovation - International Science and Innovation",Foreign and Commonwealth Office (FCO),314704,2.21,NEWTON FUND - Malaysia-R & D Current Grants to Central Government,MK10 1PX,WGA ONLY
"Department for Business, Energy and Industrial Strategy","Department for Business, Energy and Industrial Strategy",11/11/2019,R & D Current Grants to Central Government,"Industrial Strategy, Science and Innovation - International Science and Innovation",Foreign and Commonwealth Office (FCO),314705,2.4,NEWTON FUND - Malaysia-R & D Current Grants to Central Government,MK10 1PX,WGA ONLY
"Department for Business, Energy and Industrial Strategy","Department for Business, Energy and Industrial Strategy",11/11/2019,R & D Current Grants to Central Government,"Industrial Strategy, Science and Innovation - International Science and Innovation",Foreign and Commonwealth Office (FCO),314706,3.62,NEWTON FUND - Malaysia-R & D Current Grants to Central Government,MK10 1PX,WGA ONLY
"Department for Business, Energy and Industrial Strategy","Department for Business, Energy and Industrial Strategy",11/11/2019,R & D Current Grants to Central Government,"Industrial Strategy, Science and Innovation - International Science and Innovation",Foreign and Commonwealth Office (FCO),314707,6.66,NEWTON FUND - Malaysia-R & D Current Grants to Central Government,MK10 1PX,WGA ONLY
"Department for Business, Energy and Industrial Strategy","Department for Business, Energy and Industrial Strategy",11/11/2019,R & D Current Grants to Central Government,"Industrial Strategy, Science and Innovation - International Science and Innovation",Foreign and Commonwealth Office (FCO),314708,9.52,NEWTON FUND - Malaysia-R & D Current Grants to Central Government,MK10 1PX,WGA ONLY
"Department for Business, Energy and Industrial Strategy","Department for Business, Energy and Industrial Strategy",11/11/2019,R & D Current Grants to Central Government,"Industrial Strategy, Science and Innovation - International Science and Innovation",Foreign and Commonwealth Office (FCO),314709,9.99,NEWTON FUND - Malaysia-R & D Current Grants to Central Government,MK10 1PX,WGA ONLY
"Department for Business, Energy and Industrial Strategy","Department for Business, Energy and Industrial Strategy",11/11/2019,R & D Current Grants to Central Government,"Industrial Strategy, Science and Innovation - International Science and Innovation",Foreign and Commonwealth Office (FCO),314710,10.28,NEWTON FUND - Malaysia-R & D Current Grants to Central Government,MK10 1PX,WGA ONLY
"Department for Business, Energy and Industrial Strategy","Department for Business, Energy and Industrial Strategy",11/11/2019,R & D Current Grants to Central Government,"Industrial Strategy, Science and Innovation - International Science and Innovation",Foreign and Commonwealth Office (FCO),314711,12.62,NEWTON FUND - Malaysia-R & D Current Grants to Central Government,MK10 1PX,WGA ONLY
"Department for Business, Energy and Industrial Strategy","Department for Business, Energy and Industrial Strategy",11/11/2019,R & D Current Grants to Central Government,"Industrial Strategy, Science and Innovation - International Science and Innovation",Foreign and Commonwealth Office (FCO),314712,13.02,NEWTON FUND - Malaysia-R & D Current Grants to Central Government,MK10 1PX,WGA ONLY
"Department for Business, Energy and Industrial Strategy","Department for Business, Energy and Industrial Strategy",11/11/2019,R & D Current Grants to Central Government,"Industrial Strategy, Science and Innovation - International Science and Innovation",Foreign and Commonwealth Office (FCO),314713,13.72,NEWTON FUND - Malaysia-R & D Current Grants to Central Government,MK10 1PX,WGA ONLY
"Department for Business, Energy and Industrial Strategy","Department for Business, Energy and Industrial Strategy",11/11/2019,R & D Current Grants to Central Government,"Industrial Strategy, Science and Innovation - International Science and Innovation",Foreign and Commonwealth Office (FCO),314714,16.85,NEWTON FUND - Malaysia-R & D Current Grants to Central Government,MK10 1PX,WGA ONLY
"Department for Business, Energy and Industrial Strategy","Department for Business, Energy and Industrial Strategy",11/11/2019,R & D Current Grants to Central Government,"Industrial Strategy, Science and Innovation - International Science and Innovation",Foreign and Commonwealth Office (FCO),314715,26.9,NEWTON FUND - Malaysia-R & D Current Grants to Central Government,MK10 1PX,WGA ONLY
"Department for Business, Energy and Industrial Strategy","Department for Business, Energy and Industrial Strategy",11/11/2019,R & D Current Grants to Central Government,"Industrial Strategy, Science and Innovation - International Science and Innovation",Foreign and Commonwealth Office (FCO),314716,26.9,NEWTON FUND - Malaysia-R & D Current Grants to Central Government,MK10 1PX,WGA ONLY
"Department for Business, Energy and Industrial Strategy","Department for Business, Energy and Industrial Strategy",11/11/2019,R & D Current Grants to Central Government,"Industrial Strategy, Science and Innovation - International Science and Innovation",Foreign and Commonwealth Office (FCO),314717,26.9,NEWTON FUND - Malaysia-R & D Current Grants to Central Government,MK10 1PX,WGA ONLY
"Department for Business, Energy and Industrial Strategy","Department for Business, Energy and Industrial Strategy",11/11/2019,R & D Current Grants to Central Government,"Industrial Strategy, Science and Innovation - International Science and Innovation",Foreign and Commonwealth Office (FCO),314718,28.69,NEWTON FUND - Malaysia-R & D Current Grants to Central Government,MK10 1PX,WGA ONLY
"Department for Business, Energy and Industrial Strategy","Department for Business, Energy and Industrial Strategy",11/11/2019,R & D Current Grants to Central Government,"Industrial Strategy, Science and Innovation - International Science and Innovation",Foreign and Commonwealth Office (FCO),314719,28.69,NEWTON FUND - Malaysia-R & D Current Grants to Central Government,MK10 1PX,WGA ONLY
"Department for Business, Energy and Industrial Strategy","Department for Business, Energy and Industrial Strategy",11/11/2019,R & D Current Grants to Central Government,"Industrial Strategy, Science and Innovation - International Science and Innovation",Foreign and Commonwealth Office (FCO),314720,31.07,NEWTON FUND - Malaysia-R & D Current Grants to Central Government,MK10 1PX,WGA ONLY
"Department for Business, Energy and Industrial Strategy","Department for Business, Energy and Industrial Strategy",11/11/2019,R & D Current Grants to Central Government,"Industrial Strategy, Science and Innovation - International Science and Innovation",Foreign and Commonwealth Office (FCO),314721,31.08,NEWTON FUND - Malaysia-R & D Current Grants to Central Government,MK10 1PX,WGA ONLY
"Department for Business, Energy and Industrial Strategy","Department for Business, Energy and Industrial Strategy",11/11/2019,R & D Current Grants to Central Government,"Industrial Strategy, Science and Innovation - International Science and Innovation",Foreign and Commonwealth Office (FCO),314722,3.38,Newton Fund - Singapore-R & D Current Grants to Central Government,MK10 1PX,WGA ONLY
"Department for Business, Energy and Industrial Strategy","Department for Business, Energy and Industrial Strategy",11/11/2019,R & D Current Grants to Central Government,"Industrial Strategy, Science and Innovation - International Science and Innovation",Foreign and Commonwealth Office (FCO),314723,6.57,Newton Fund - Singapore-R & D Current Grants to Central Government,MK10 1PX,WGA ONLY
"Department for Business, Energy and Industrial Strategy","Department for Business, Energy and Industrial Strategy",11/11/2019,R & D Current Grants to Central Government,"Industrial Strategy, Science and Innovation - International Science and Innovation",Foreign and Commonwealth Office (FCO),314724,12.91,Newton Fund - Singapore-R & D Current Grants to Central Government,MK10 1PX,WGA ONLY
"Department for Business, Energy and Industrial Strategy","Department for Business, Energy and Industrial Strategy",11/11/2019,R & D Current Grants to Central Government,"Industrial Strategy, Science and Innovation - International Science and Innovation",Foreign and Commonwealth Office (FCO),314725,13.47,Newton Fund - Singapore-R & D Current Grants to Central Government,MK10 1PX,WGA ONLY
"Department for Business, Energy and Industrial Strategy","Department for Business, Energy and Industrial Strategy",11/11/2019,R & D Current Grants to Central Government,"Industrial Strategy, Science and Innovation - International Science and Innovation",Foreign and Commonwealth Office (FCO),314726,60.8,Newton Fund - Singapore-R & D Current Grants to Central Government,MK10 1PX,WGA ONLY
"Department for Business, Energy and Industrial Strategy","Department for Business, Energy and Industrial Strategy",11/11/2019,R & D Current Grants to Central Government,"Industrial Strategy, Science and Innovation - International Science and Innovation",Foreign and Commonwealth Office (FCO),314727,114.67,Newton Fund - Singapore-R & D Current Grants to Central Government,MK10 1PX,WGA ONLY
"Department for Business, Energy and Industrial Strategy","Department for Business, Energy and Industrial Strategy",11/11/2019,R & D Current Grants to Central Government,"Industrial Strategy, Science and Innovation - International Science and Innovation",Foreign and Commonwealth Office (FCO),314728,286.11,Newton Fund - Singapore-R & D Current Grants to Central Government,MK10 1PX,WGA ONLY
"Department for Business, Energy and Industrial Strategy","Department for Business, Energy and Industrial Strategy",11/11/2019,R & D Current Grants to Central Government,"Industrial Strategy, Science and Innovation - International Science and Innovation",Foreign and Commonwealth Office (FCO),314729,886.92,NEWTON FUND - Thailand-R & D Current Grants to Central Government,MK10 1PX,WGA ONLY
"Department for Business, Energy and Industrial Strategy","Department for Business, Energy and Industrial Strategy",11/11/2019,R & D Current Grants to Central Government,"Industrial Strategy, Science and Innovation - International Science and Innovation",Foreign and Commonwealth Office (FCO),314730,17.51,Newton Fund - Peru-R & D Current Grants to Central Government,MK10 1PX,WGA ONLY
"Department for Business, Energy and Industrial Strategy","Department for Business, Energy and Industrial Strategy",11/11/2019,R & D Current Grants to Central Government,"Industrial Strategy, Science and Innovation - International Science and Innovation",Foreign and Commonwealth Office (FCO),314731,76.82,Newton Fund - Peru-R & D Current Grants to Central Government,MK10 1PX,WGA ONLY
"Department for Business, Energy and Industrial Strategy","Department for Business, Energy and Industrial Strategy",11/11/2019,R & D Current Grants to Central Government,"Industrial Strategy, Science and Innovation - International Science and Innovation",Foreign and Commonwealth Office (FCO),314732,129.7,Newton Fund - Peru-R & D Current Grants to Central Government,MK10 1PX,WGA ONLY
"Department for Business, Energy and Industrial Strategy","Department for Business, Energy and Industrial Strategy",11/11/2019,R & D Current Grants to Central Government,"Industrial Strategy, Science and Innovation - International Science and Innovation",Foreign and Commonwealth Office (FCO),314733,293.18,Newton Fund - Peru-R & D Current Grants to Central Government,MK10 1PX,WGA ONLY
"Department for Business, Energy and Industrial Strategy","Department for Business, Energy and Industrial Strategy",11/11/2019,Current Grants To Private Sector - NPISH,"Industrial Strategy, Science and Innovation - International Science and Innovation",Foreign and Commonwealth Office (FCO),314734,389.85,NEWTON FUND - South Africa and wider Africa-Current Grants To Private Sector - NPISH,MK10 1PX,WGA ONLY
"Department for Business, Energy and Industrial Strategy","Department for Business, Energy and Industrial Strategy",11/11/2019,R & D Current Grants to Central Government,"Industrial Strategy, Science and Innovation - International Science and Innovation",Foreign and Commonwealth Office (FCO),314735,1205.96,NEWTON FUND - India-R & D Current Grants to Central Government,MK10 1PX,WGA ONLY
"Department for Business, Energy and Industrial Strategy","Department for Business, Energy and Industrial Strategy",11/11/2019,R & D Current Grants to Central Government,"Industrial Strategy, Science and Innovation - International Science and Innovation",Foreign and Commonwealth Office (FCO),314736,13.96,NEWTON FUND - Brazil-R & D Current Grants to Central Government,MK10 1PX,WGA ONLY
"Department for Business, Energy and Industrial Strategy","Department for Business, Energy and Industrial Strategy",11/11/2019,R & D Current Grants to Central Government,"Industrial Strategy, Science and Innovation - International Science and Innovation",Foreign and Commonwealth Office (FCO),314737,197.5,NEWTON FUND - Brazil-R & D Current Grants to Central Government,MK10 1PX,WGA ONLY
"Department for Business, Energy and Industrial Strategy","Department for Business, Energy and Industrial Strategy",11/11/2019,R & D Current Grants to Central Government,"Industrial Strategy, Science and Innovation - International Science and Innovation",Foreign and Commonwealth Office (FCO),314738,87.93,NEWTON FUND - Brazil-R & D Current Grants to Central Government,MK10 1PX,WGA ONLY
"Department for Business, Energy and Industrial Strategy","Department for Business, Energy and Industrial Strategy",11/11/2019,R & D Current Grants to Central Government,"Industrial Strategy, Science and Innovation - International Science and Innovation",Foreign and Commonwealth Office (FCO),314739,961.84,NEWTON FUND - Brazil-R & D Current Grants to Central Government,MK10 1PX,WGA ONLY
"Department for Business, Energy and Industrial Strategy","Department for Business, Energy and Industrial Strategy",11/11/2019,R & D Current Grants to Central Government,"Industrial Strategy, Science and Innovation - International Science and Innovation",Foreign and Commonwealth Office (FCO),314740,1905.38,NEWTON FUND - Brazil-R & D Current Grants to Central Government,MK10 1PX,WGA ONLY
"Department for Business, Energy and Industrial Strategy","Department for Business, Energy and Industrial Strategy",11/11/2019,R & D Current Grants to Central Government,"Industrial Strategy, Science and Innovation - International Science and Innovation",Foreign and Commonwealth Office (FCO),314741,106.43,NEWTON FUND - Brazil-R & D Current Grants to Central Government,MK10 1PX,WGA ONLY
"Department for Business, Energy and Industrial Strategy","Department for Business, Energy and Industrial Strategy",11/11/2019,R & D Current Grants to Central Government,"Industrial Strategy, Science and Innovation - International Science and Innovation",Foreign and Commonwealth Office (FCO),314742,1940.17,NEWTON FUND - Brazil-R & D Current Grants to Central Government,MK10 1PX,WGA ONLY
"Department for Business, Energy and Industrial Strategy","Department for Business, Energy and Industrial Strategy",11/11/2019,Current Grants To Private Sector - NPISH,"Industrial Strategy, Science and Innovation - International Science and Innovation",Foreign and Commonwealth Office (FCO),314743,1.66,NEWTON FUND - South Africa and wider Africa-Current Grants To Private Sector - NPISH,MK10 1PX,WGA ONLY
"Department for Business, Energy and Industrial Strategy","Department for Business, Energy and Industrial Strategy",11/11/2019,Current Grants To Private Sector - NPISH,"Industrial Strategy, Science and Innovation - International Science and Innovation",Foreign and Commonwealth Office (FCO),314744,33.22,NEWTON FUND - South Africa and wider Africa-Current Grants To Private Sector - NPISH,MK10 1PX,WGA ONLY
"Department for Business, Energy and Industrial Strategy","Department for Business, Energy and Industrial Strategy",11/11/2019,Current Grants To Private Sector - NPISH,"Industrial Strategy, Science and Innovation - International Science and Innovation",Foreign and Commonwealth Office (FCO),314745,6.37,NEWTON FUND - South Africa and wider Africa-Current Grants To Private Sector - NPISH,MK10 1PX,WGA ONLY
"Department for Business, Energy and Industrial Strategy","Department for Business, Energy and Industrial Strategy",11/11/2019,R & D Current Grants to Central Government,"Industrial Strategy, Science and Innovation - International Science and Innovation",Foreign and Commonwealth Office (FCO),314746,4529.6,NEWTON FUND - China-R & D Current Grants to Central Government,MK10 1PX,WGA ONLY
"Department for Business, Energy and Industrial Strategy","Department for Business, Energy and Industrial Strategy",11/11/2019,R & D Current Grants to Central Government,"Industrial Strategy, Science and Innovation - International Science and Innovation",Foreign and Commonwealth Office (FCO),314747,1000,NEWTON FUND - India-R & D Current Grants to Central Government,MK10 1PX,WGA ONLY
"Department for Business, Energy and Industrial Strategy","Department for Business, Energy and Industrial Strategy",11/11/2019,R & D Current Grants to Central Government,"Industrial Strategy, Science and Innovation - International Science and Innovation",Foreign and Commonwealth Office (FCO),314748,259.89,NEWTON FUND - Vietnam-R & D Current Grants to Central Government,MK10 1PX,WGA ONLY
"Department for Business, Energy and Industrial Strategy","Department for Business, Energy and Industrial Strategy",11/11/2019,R & D Current Grants to Central Government,"Industrial Strategy, Science and Innovation - International Science and Innovation",Foreign and Commonwealth Office (FCO),314749,68.75,NEWTON FUND - China-R & D Current Grants to Central Government,MK10 1PX,WGA ONLY
"Department for Business, Energy and Industrial Strategy","Department for Business, Energy and Industrial Strategy",11/11/2019,R & D Current Grants to Central Government,"Industrial Strategy, Science and Innovation - International Science and Innovation",Foreign and Commonwealth Office (FCO),314750,906.21,NEWTON FUND - China-R & D Current Grants to Central Government,MK10 1PX,WGA ONLY
"Department for Business, Energy and Industrial Strategy","Department for Business, Energy and Industrial Strategy",11/11/2019,R & D Current Grants to Central Government,"Industrial Strategy, Science and Innovation - International Science and Innovation",Foreign and Commonwealth Office (FCO),314751,2047.5,NEWTON FUND - China-R & D Current Grants to Central Government,MK10 1PX,WGA ONLY
"Department for Business, Energy and Industrial Strategy","Department for Business, Energy and Industrial Strategy",11/11/2019,Current Grants To Private Sector - NPISH,"Industrial Strategy, Science and Innovation - International Science and Innovation",Foreign and Commonwealth Office (FCO),314752,281.9,NEWTON FUND - South Africa and wider Africa-Current Grants To Private Sector - NPISH,MK10 1PX,WGA ONLY
"Department for Business, Energy and Industrial Strategy","Department for Business, Energy and Industrial Strategy",11/11/2019,R & D Current Grants to Private Sector - NPISH,"Industrial Strategy, Science and Innovation - International Science and Innovation",Foreign and Commonwealth Office (FCO),314753,618.76,NEWTON FUND - Egypt-R & D Current Grants to Private Sector - NPISH,MK10 1PX,WGA ONLY
"Department for Business, Energy and Industrial Strategy","Department for Business, Energy and Industrial Strategy",11/11/2019,R & D Current Grants to Private Sector - NPISH,"Industrial Strategy, Science and Innovation - International Science and Innovation",Foreign and Commonwealth Office (FCO),314754,1580.3,NEWTON FUND - Egypt-R & D Current Grants to Private Sector - NPISH,MK10 1PX,WGA ONLY
"Department for Business, Energy and Industrial Strategy","Department for Business, Energy and Industrial Strategy",11/11/2019,R & D Current Grants to Central Government,"Industrial Strategy, Science and Innovation - International Science and Innovation",Foreign and Commonwealth Office (FCO),314755,54.42,NEWTON FUND - China-R & D Current Grants to Central Government,MK10 1PX,WGA ONLY
"Department for Business, Energy and Industrial Strategy","Department for Business, Energy and Industrial Strategy",11/11/2019,R & D Current Grants to Central Government,"Industrial Strategy, Science and Innovation - International Science and Innovation",Foreign and Commonwealth Office (FCO),314756,81.9,NEWTON FUND - China-R & D Current Grants to Central Government,MK10 1PX,WGA ONLY
"Department for Business, Energy and Industrial Strategy","Department for Business, Energy and Industrial Strategy",11/11/2019,R & D Current Grants to Central Government,"Industrial Strategy, Science and Innovation - International Science and Innovation",Foreign and Commonwealth Office (FCO),314757,415.02,NEWTON FUND - China-R & D Current Grants to Central Government,MK10 1PX,WGA ONLY
"Department for Business, Energy and Industrial Strategy","Department for Business, Energy and Industrial Strategy",11/11/2019,R & D Current Grants to Central Government,"Industrial Strategy, Science and Innovation - International Science and Innovation",Foreign and Commonwealth Office (FCO),314758,637.75,NEWTON FUND - China-R & D Current Grants to Central Government,MK10 1PX,WGA ONLY
"Department for Business, Energy and Industrial Strategy","Department for Business, Energy and Industrial Strategy",11/11/2019,R & D Current Grants to Central Government,"Industrial Strategy, Science and Innovation - International Science and Innovation",Foreign and Commonwealth Office (FCO),314759,1550.59,NEWTON FUND - China-R & D Current Grants to Central Government,MK10 1PX,WGA ONLY
"Department for Business, Energy and Industrial Strategy","Department for Business, Energy and Industrial Strategy",11/11/2019,R & D Current Grants to Central Government,"Industrial Strategy, Science and Innovation - International Science and Innovation",Foreign and Commonwealth Office (FCO),314760,206.41,NEWTON FUND - Vietnam-R & D Current Grants to Central Government,MK10 1PX,WGA ONLY
"Department for Business, Energy and Industrial Strategy","Department for Business, Energy and Industrial Strategy",11/11/2019,R & D Current Grants to Central Government,"Industrial Strategy, Science and Innovation - International Science and Innovation",Foreign and Commonwealth Office (FCO),314761,415.04,NEWTON FUND - Vietnam-R & D Current Grants to Central Government,MK10 1PX,WGA ONLY
"Department for Business, Energy and Industrial Strategy","Department for Business, Energy and Industrial Strategy",11/11/2019,Current Grants To Private Sector - NPISH,"Industrial Strategy, Science and Innovation - International Science and Innovation",Foreign and Commonwealth Office (FCO),314762,2394.28,NEWTON FUND - Indonesia-Current Grants To Private Sector - NPISH,MK10 1PX,WGA ONLY
"Department for Business, Energy and Industrial Strategy","Department for Business, Energy and Industrial Strategy",11/11/2019,R & D Current Grants to Central Government,"Industrial Strategy, Science and Innovation - International Science and Innovation",Foreign and Commonwealth Office (FCO),314763,2988,NEWTON FUND - India-R & D Current Grants to Central Government,MK10 1PX,WGA ONLY
"Department for Business, Energy and Industrial Strategy","Department for Business, Energy and Industrial Strategy",11/11/2019,R & D Current Grants to Central Government,"Industrial Strategy, Science and Innovation - International Science and Innovation",Foreign and Commonwealth Office (FCO),314764,4547.24,Newton Fund - Jordan-R & D Current Grants to Central Government,MK10 1PX,WGA ONLY
"Department for Business, Energy and Industrial Strategy","Department for Business, Energy and Industrial Strategy",11/11/2019,R & D Current Grants to Central Government,"Industrial Strategy, Science and Innovation - International Science and Innovation",Foreign and Commonwealth Office (FCO),314765,913.79,Newton Fund - Kenya-R & D Current Grants to Central Government,MK10 1PX,WGA ONLY
"Department for Business, Energy and Industrial Strategy","Department for Business, Energy and Industrial Strategy",11/11/2019,R & D Current Grants to Central Government,"Industrial Strategy, Science and Innovation - International Science and Innovation",Foreign and Commonwealth Office (FCO),314766,182.88,NEWTON FUND - India-R & D Current Grants to Central Government,MK10 1PX,WGA ONLY
"Department for Business, Energy and Industrial Strategy","Department for Business, Energy and Industrial Strategy",11/11/2019,R & D Current Grants to Private Sector - NPISH,"Industrial Strategy, Science and Innovation - International Science and Innovation",Foreign and Commonwealth Office (FCO),314767,3402.67,NEWTON FUND - Malaysia-R & D Current Grants to Private Sector - NPISH,MK10 1PX,WGA ONLY
"Department for Business, Energy and Industrial Strategy","Department for Business, Energy and Industrial Strategy",11/11/2019,R & D Current Grants to Central Government,"Industrial Strategy, Science and Innovation - International Science and Innovation",Foreign and Commonwealth Office (FCO),314768,1269.45,NEWTON FUND - Mexico-R & D Current Grants to Central Government,MK10 1PX,WGA ONLY
"Department for Business, Energy and Industrial Strategy","Department for Business, Energy and Industrial Strategy",11/11/2019,R & D Current Grants to Central Government,"Industrial Strategy, Science and Innovation - International Science and Innovation",Foreign and Commonwealth Office (FCO),314770,1116.82,Newton Fund - Peru-R & D Current Grants to Central Government,MK10 1PX,WGA ONLY
"Department for Business, Energy and Industrial Strategy","Department for Business, Energy and Industrial Strategy",11/11/2019,R & D Current Grants to Central Government,"Industrial Strategy, Science and Innovation - International Science and Innovation",Foreign and Commonwealth Office (FCO),314774,2561.86,Newton Fund - Peru-R & D Current Grants to Central Government,MK10 1PX,WGA ONLY
"Department for Business, Energy and Industrial Strategy","Department for Business, Energy and Industrial Strategy",11/11/2019,R & D Current Grants to Central Government,"Industrial Strategy, Science and Innovation - International Science and Innovation",Foreign and Commonwealth Office (FCO),314775,601.5,NEWTON FUND - Philippines-R & D Current Grants to Central Government,MK10 1PX,WGA ONLY
"Department for Business, Energy and Industrial Strategy","Department for Business, Energy and Industrial Strategy",11/11/2019,R & D Current Grants to Private Sector - NPISH,"Industrial Strategy, Science and Innovation - International Science and Innovation",Foreign and Commonwealth Office (FCO),314776,683.93,NEWTON FUND - Philippines-R & D Current Grants to Private Sector - NPISH,MK10 1PX,WGA ONLY
"Department for Business, Energy and Industrial Strategy","Department for Business, Energy and Industrial Strategy",11/11/2019,R & D Current Grants to Central Government,"Industrial Strategy, Science and Innovation - International Science and Innovation",Foreign and Commonwealth Office (FCO),314777,273.58,NEWTON FUND - Philippines-R & D Current Grants to Central Government,MK10 1PX,WGA ONLY
"Department for Business, Energy and Industrial Strategy","Department for Business, Energy and Industrial Strategy",11/11/2019,R & D Current Grants to Private Sector - NPISH,"Industrial Strategy, Science and Innovation - International Science and Innovation",Foreign and Commonwealth Office (FCO),314778,48.52,NEWTON FUND - Mexico-R & D Current Grants to Private Sector - NPISH,MK10 1PX,WGA ONLY
"Department for Business, Energy and Industrial Strategy","Department for Business, Energy and Industrial Strategy",11/11/2019,Current Grants To Private Sector - NPISH,"Industrial Strategy, Science and Innovation - International Science and Innovation",Foreign and Commonwealth Office (FCO),314779,2628.29,NEWTON FUND - South Africa and wider Africa-Current Grants To Private Sector - NPISH,MK10 1PX,WGA ONLY
"Department for Business, Energy and Industrial Strategy","Department for Business, Energy and Industrial Strategy",11/11/2019,R & D Current Grants to Central Government,"Industrial Strategy, Science and Innovation - International Science and Innovation",Foreign and Commonwealth Office (FCO),314780,433.32,Newton Fund - Singapore-R & D Current Grants to Central Government,MK10 1PX,WGA ONLY
"Department for Business, Energy and Industrial Strategy","Department for Business, Energy and Industrial Strategy",11/11/2019,R & D Current Grants to Private Sector - NPISH,"Industrial Strategy, Science and Innovation - International Science and Innovation",Foreign and Commonwealth Office (FCO),314781,2547.97,Newton Fund - Singapore-R & D Current Grants to Private Sector - NPISH,MK10 1PX,WGA ONLY
"Department for Business, Energy and Industrial Strategy","Department for Business, Energy and Industrial Strategy",11/11/2019,Current Grants To Private Sector - NPISH,"Industrial Strategy, Science and Innovation - International Science and Innovation",Foreign and Commonwealth Office (FCO),314785,724.92,NEWTON FUND - South Africa and wider Africa-Current Grants To Private Sector - NPISH,MK10 1PX,WGA ONLY
"Department for Business, Energy and Industrial Strategy","Department for Business, Energy and Industrial Strategy",11/11/2019,R & D Current Grants to Central Government,"Industrial Strategy, Science and Innovation - International Science and Innovation",Foreign and Commonwealth Office (FCO),314786,384.52,NEWTON FUND - Turkey-R & D Current Grants to Central Government,MK10 1PX,WGA ONLY
"Department for Business, Energy and Industrial Strategy","Department for Business, Energy and Industrial Strategy",11/11/2019,R & D Current Grants to Central Government,"Industrial Strategy, Science and Innovation - International Science and Innovation",Foreign and Commonwealth Office (FCO),314787,469.19,NEWTON FUND - Turkey-R & D Current Grants to Central Government,MK10 1PX,WGA ONLY
"Department for Business, Energy and Industrial Strategy","Department for Business, Energy and Industrial Strategy",11/11/2019,R & D Current Grants to Central Government,"Industrial Strategy, Science and Innovation - International Science and Innovation",Foreign and Commonwealth Office (FCO),314788,116.72,Newton Fund - Peru-R & D Current Grants to Central Government,MK10 1PX,WGA ONLY
"Department for Business, Energy and Industrial Strategy","Department for Business, Energy and Industrial Strategy",11/11/2019,R & D Current Grants to Central Government,"Industrial Strategy, Science and Innovation - International Science and Innovation",Foreign and Commonwealth Office (FCO),314789,263.83,Newton Fund - Peru-R & D Current Grants to Central Government,MK10 1PX,WGA ONLY
"Department for Business, Energy and Industrial Strategy","Department for Business, Energy and Industrial Strategy",11/11/2019,R & D Current Grants to Private Sector - NPISH,"Industrial Strategy, Science and Innovation - International Science and Innovation",Foreign and Commonwealth Office (FCO),314790,105.39,NEWTON FUND - Egypt-R & D Current Grants to Private Sector - NPISH,MK10 1PX,WGA ONLY
"Department for Business, Energy and Industrial Strategy","Department for Business, Energy and Industrial Strategy",11/11/2019,R & D Current Grants to Private Sector - NPISH,"Industrial Strategy, Science and Innovation - International Science and Innovation",Foreign and Commonwealth Office (FCO),314791,399,NEWTON FUND - Egypt-R & D Current Grants to Private Sector - NPISH,MK10 1PX,WGA ONLY
"Department for Business, Energy and Industrial Strategy","Department for Business, Energy and Industrial Strategy",11/11/2019,R & D Current Grants to Private Sector - NPISH,"Industrial Strategy, Science and Innovation - International Science and Innovation",Foreign and Commonwealth Office (FCO),314792,500.01,NEWTON FUND - Thailand-R & D Current Grants to Private Sector - NPISH,MK10 1PX,WGA ONLY
"Department for Business, Energy and Industrial Strategy","Department for Business, Energy and Industrial Strategy",11/11/2019,R & D Current Grants to Private Sector - NPISH,"Industrial Strategy, Science and Innovation - International Science and Innovation",Foreign and Commonwealth Office (FCO),314793,2703.18,NEWTON FUND - Thailand-R & D Current Grants to Private Sector - NPISH,MK10 1PX,WGA ONLY
"Department for Business, Energy and Industrial Strategy","Department for Business, Energy and Industrial Strategy",11/11/2019,R & D Current Grants to Central Government,"Industrial Strategy, Science and Innovation - International Science and Innovation",Foreign and Commonwealth Office (FCO),314794,2155.73,NEWTON FUND - Vietnam-R & D Current Grants to Central Government,MK10 1PX,WGA ONLY
"Department for Business, Energy and Industrial Strategy","Department for Business, Energy and Industrial Strategy",11/11/2019,R & D Current Grants to Private Sector - NPISH,"Industrial Strategy, Science and Innovation - International Science and Innovation",Foreign and Commonwealth Office (FCO),314795,24.33,Newton Fund - Other Activities-R & D Current Grants to Private Sector - NPISH,MK10 1PX,WGA ONLY
"Department for Business, Energy and Industrial Strategy","Department for Business, Energy and Industrial Strategy",20/11/2019,Other IT Consultancy,"Corporate Services - Digital, Data & Technology",FDM Group Ltd,314985,6156,MF Devolved Admin-Other IT Consultancy,SE1 2QG,VENDOR
"Department for Business, Energy and Industrial Strategy","Department for Business, Energy and Industrial Strategy",20/11/2019,Other IT Consultancy,"Corporate Services - Digital, Data & Technology",FDM Group Ltd,314992,6480,MF Devolved Admin-Other IT Consultancy,SE1 2QG,VENDOR
"Department for Business, Energy and Industrial Strategy","Department for Business, Energy and Industrial Strategy",25/11/2019,R & D Current Grants to Central Government,"Industrial Strategy, Science and Innovation - International Science and Innovation",Foreign and Commonwealth Office (FCO),315000,1706.94,NEWTON FUND - Malaysia-R & D Current Grants to Central Government,MK10 1PX,WGA ONLY
"Department for Business, Energy and Industrial Strategy","Department for Business, Energy and Industrial Strategy",19/11/2019,Application Support Service,"Corporate Services - Digital, Data & Technology",Triad Group Plc,315028,17100,MF Devolved Admin-Application Support Service,GU7 1XE,VENDOR
"Department for Business, Energy and Industrial Strategy","Department for Business, Energy and Industrial Strategy",11/11/2019,ICT Outsourcing & Maintenance/Support,EU Exit and Analysis - Analysis Directorate,PROGRAVITAS LTD,315036,12636,MF Devolved Admin-ICT Outsourcing & Maintenance/Support,SG8 6DT,VENDOR
"Department for Business, Energy and Industrial Strategy","Department for Business, Energy and Industrial Strategy",13/11/2019,R & D Current Grants to Central Government,"Industrial Strategy, Science and Innovation - International Science and Innovation",Foreign and Commonwealth Office (FCO),315043,101.45,Newton Fund - Singapore-R & D Current Grants to Central Government,MK10 1PX,WGA ONLY
"Department for Business, Energy and Industrial Strategy","Department for Business, Energy and Industrial Strategy",13/11/2019,R & D Current Grants to Central Government,"Industrial Strategy, Science and Innovation - International Science and Innovation",Foreign and Commonwealth Office (FCO),315044,612.8,Newton Fund - Singapore-R & D Current Grants to Central Government,MK10 1PX,WGA ONLY
"Department for Business, Energy and Industrial Strategy","Department for Business, Energy and Industrial Strategy",13/11/2019,R & D Current Grants to Central Government,"Industrial Strategy, Science and Innovation - International Science and Innovation",Foreign and Commonwealth Office (FCO),315045,863.36,Newton Fund - Singapore-R & D Current Grants to Central Government,MK10 1PX,WGA ONLY
"Department for Business, Energy and Industrial Strategy","Department for Business, Energy and Industrial Strategy",13/11/2019,R & D Current Grants to Central Government,"Industrial Strategy, Science and Innovation - International Science and Innovation",Foreign and Commonwealth Office (FCO),315046,2.39,Newton Fund - Peru-R & D Current Grants to Central Government,MK10 1PX,WGA ONLY
"Department for Business, Energy and Industrial Strategy","Department for Business, Energy and Industrial Strategy",13/11/2019,R & D Current Grants to Central Government,"Industrial Strategy, Science and Innovation - International Science and Innovation",Foreign and Commonwealth Office (FCO),315047,2.39,Newton Fund - Peru-R & D Current Grants to Central Government,MK10 1PX,WGA ONLY
"Department for Business, Energy and Industrial Strategy","Department for Business, Energy and Industrial Strategy",13/11/2019,R & D Current Grants to Central Government,"Industrial Strategy, Science and Innovation - International Science and Innovation",Foreign and Commonwealth Office (FCO),315048,2.45,Newton Fund - Peru-R & D Current Grants to Central Government,MK10 1PX,WGA ONLY
"Department for Business, Energy and Industrial Strategy","Department for Business, Energy and Industrial Strategy",13/11/2019,R & D Current Grants to Central Government,"Industrial Strategy, Science and Innovation - International Science and Innovation",Foreign and Commonwealth Office (FCO),315049,2.51,Newton Fund - Peru-R & D Current Grants to Central Government,MK10 1PX,WGA ONLY
"Department for Business, Energy and Industrial Strategy","Department for Business, Energy and Industrial Strategy",13/11/2019,R & D Current Grants to Central Government,"Industrial Strategy, Science and Innovation - International Science and Innovation",Foreign and Commonwealth Office (FCO),315050,2.51,Newton Fund - Peru-R & D Current Grants to Central Government,MK10 1PX,WGA ONLY
"Department for Business, Energy and Industrial Strategy","Department for Business, Energy and Industrial Strategy",13/11/2019,R & D Current Grants to Central Government,"Industrial Strategy, Science and Innovation - International Science and Innovation",Foreign and Commonwealth Office (FCO),315051,3.12,Newton Fund - Peru-R & D Current Grants to Central Government,MK10 1PX,WGA ONLY
"Department for Business, Energy and Industrial Strategy","Department for Business, Energy and Industrial Strategy",13/11/2019,R & D Current Grants to Central Government,"Industrial Strategy, Science and Innovation - International Science and Innovation",Foreign and Commonwealth Office (FCO),315052,4.43,Newton Fund - Peru-R & D Current Grants to Central Government,MK10 1PX,WGA ONLY
"Department for Business, Energy and Industrial Strategy","Department for Business, Energy and Industrial Strategy",13/11/2019,R & D Current Grants to Central Government,"Industrial Strategy, Science and Innovation - International Science and Innovation",Foreign and Commonwealth Office (FCO),315053,3.99,Newton Fund - Peru-R & D Current Grants to Central Government,MK10 1PX,WGA ONLY
"Department for Business, Energy and Industrial Strategy","Department for Business, Energy and Industrial Strategy",13/11/2019,R & D Current Grants to Central Government,"Industrial Strategy, Science and Innovation - International Science and Innovation",Foreign and Commonwealth Office (FCO),315054,4.2,Newton Fund - Peru-R & D Current Grants to Central Government,MK10 1PX,WGA ONLY
"Department for Business, Energy and Industrial Strategy","Department for Business, Energy and Industrial Strategy",13/11/2019,R & D Current Grants to Central Government,"Industrial Strategy, Science and Innovation - International Science and Innovation",Foreign and Commonwealth Office (FCO),315055,6.05,Newton Fund - Peru-R & D Current Grants to Central Government,MK10 1PX,WGA ONLY
"Department for Business, Energy and Industrial Strategy","Department for Business, Energy and Industrial Strategy",13/11/2019,R & D Current Grants to Central Government,"Industrial Strategy, Science and Innovation - International Science and Innovation",Foreign and Commonwealth Office (FCO),315056,10.5,Newton Fund - Peru-R & D Current Grants to Central Government,MK10 1PX,WGA ONLY
"Department for Business, Energy and Industrial Strategy","Department for Business, Energy and Industrial Strategy",13/11/2019,R & D Current Grants to Central Government,"Industrial Strategy, Science and Innovation - International Science and Innovation",Foreign and Commonwealth Office (FCO),315057,17.85,Newton Fund - Peru-R & D Current Grants to Central Government,MK10 1PX,WGA ONLY
"Department for Business, Energy and Industrial Strategy","Department for Business, Energy and Industrial Strategy",13/11/2019,R & D Current Grants to Central Government,"Industrial Strategy, Science and Innovation - International Science and Innovation",Foreign and Commonwealth Office (FCO),315058,19.05,Newton Fund - Peru-R & D Current Grants to Central Government,MK10 1PX,WGA ONLY
"Department for Business, Energy and Industrial Strategy","Department for Business, Energy and Industrial Strategy",13/11/2019,R & D Current Grants to Central Government,"Industrial Strategy, Science and Innovation - International Science and Innovation",Foreign and Commonwealth Office (FCO),315059,20,Newton Fund - Peru-R & D Current Grants to Central Government,MK10 1PX,WGA ONLY
"Department for Business, Energy and Industrial Strategy","Department for Business, Energy and Industrial Strategy",27/11/2019,IT Services,"Corporate Services - Digital, Data & Technology",Inform Ltd T/A The Inform Team,315061,19312.5,MF Devolved Admin-IT Services,SE11 5SW,VENDOR
"Department for Business, Energy and Industrial Strategy","Department for Business, Energy and Industrial Strategy",13/11/2019,R & D Current Grants to Central Government,"Industrial Strategy, Science and Innovation - International Science and Innovation",Foreign and Commonwealth Office (FCO),315067,21.67,Newton Fund - Peru-R & D Current Grants to Central Government,MK10 1PX,WGA ONLY
"Department for Business, Energy and Industrial Strategy","Department for Business, Energy and Industrial Strategy",13/11/2019,R & D Current Grants to Central Government,"Industrial Strategy, Science and Innovation - International Science and Innovation",Foreign and Commonwealth Office (FCO),315069,30,Newton Fund - Peru-R & D Current Grants to Central Government,MK10 1PX,WGA ONLY
"Department for Business, Energy and Industrial Strategy","Department for Business, Energy and Industrial Strategy",13/11/2019,R & D Current Grants to Central Government,"Industrial Strategy, Science and Innovation - International Science and Innovation",Foreign and Commonwealth Office (FCO),315070,59.55,Newton Fund - Peru-R & D Current Grants to Central Government,MK10 1PX,WGA ONLY
"Department for Business, Energy and Industrial Strategy","Department for Business, Energy and Industrial Strategy",13/11/2019,R & D Current Grants to Central Government,"Industrial Strategy, Science and Innovation - International Science and Innovation",Foreign and Commonwealth Office (FCO),315071,97.8,Newton Fund - Peru-R & D Current Grants to Central Government,MK10 1PX,WGA ONLY
"Department for Business, Energy and Industrial Strategy","Department for Business, Energy and Industrial Strategy",13/11/2019,R & D Current Grants to Central Government,"Industrial Strategy, Science and Innovation - International Science and Innovation",Foreign and Commonwealth Office (FCO),315072,973,Newton Fund - Peru-R & D Current Grants to Central Government,MK10 1PX,WGA ONLY
"Department for Business, Energy and Industrial Strategy","Department for Business, Energy and Industrial Strategy",13/11/2019,R & D Current Grants to Central Government,"Industrial Strategy, Science and Innovation - International Science and Innovation",Foreign and Commonwealth Office (FCO),315073,37.87,Newton Fund - Peru-R & D Current Grants to Central Government,MK10 1PX,WGA ONLY
"Department for Business, Energy and Industrial Strategy","Department for Business, Energy and Industrial Strategy",13/11/2019,R & D Current Grants to Central Government,"Industrial Strategy, Science and Innovation - International Science and Innovation",Foreign and Commonwealth Office (FCO),315074,51.39,Newton Fund - Peru-R & D Current Grants to Central Government,MK10 1PX,WGA ONLY
"Department for Business, Energy and Industrial Strategy","Department for Business, Energy and Industrial Strategy",13/11/2019,R & D Current Grants to Central Government,"Industrial Strategy, Science and Innovation - International Science and Innovation",Foreign and Commonwealth Office (FCO),315075,570.5,Newton Fund - Peru-R & D Current Grants to Central Government,MK10 1PX,WGA ONLY
"Department for Business, Energy and Industrial Strategy","Department for Business, Energy and Industrial Strategy",13/11/2019,R & D Current Grants to Central Government,"Industrial Strategy, Science and Innovation - International Science and Innovation",Foreign and Commonwealth Office (FCO),315076,989.08,Newton Fund - Peru-R & D Current Grants to Central Government,MK10 1PX,WGA ONLY
"Department for Business, Energy and Industrial Strategy","Department for Business, Energy and Industrial Strategy",13/11/2019,R & D Current Grants to Central Government,"Industrial Strategy, Science and Innovation - International Science and Innovation",Foreign and Commonwealth Office (FCO),315077,7.67,Newton Fund - Peru-R & D Current Grants to Central Government,MK10 1PX,WGA ONLY
"Department for Business, Energy and Industrial Strategy","Department for Business, Energy and Industrial Strategy",13/11/2019,R & D Current Grants to Central Government,"Industrial Strategy, Science and Innovation - International Science and Innovation",Foreign and Commonwealth Office (FCO),315078,21.83,NEWTON FUND - Turkey-R & D Current Grants to Central Government,MK10 1PX,WGA ONLY
"Department for Business, Energy and Industrial Strategy","Department for Business, Energy and Industrial Strategy",13/11/2019,R & D Current Grants to Central Government,"Industrial Strategy, Science and Innovation - International Science and Innovation",Foreign and Commonwealth Office (FCO),315079,2.56,NEWTON FUND - Brazil-R & D Current Grants to Central Government,MK10 1PX,WGA ONLY
"Department for Business, Energy and Industrial Strategy","Department for Business, Energy and Industrial Strategy",13/11/2019,R & D Current Grants to Central Government,"Industrial Strategy, Science and Innovation - International Science and Innovation",Foreign and Commonwealth Office (FCO),315080,5.1,NEWTON FUND - Brazil-R & D Current Grants to Central Government,MK10 1PX,WGA ONLY
"Department for Business, Energy and Industrial Strategy","Department for Business, Energy and Industrial Strategy",13/11/2019,R & D Current Grants to Central Government,"Industrial Strategy, Science and Innovation - International Science and Innovation",Foreign and Commonwealth Office (FCO),315081,5.62,NEWTON FUND - Brazil-R & D Current Grants to Central Government,MK10 1PX,WGA ONLY
"Department for Business, Energy and Industrial Strategy","Department for Business, Energy and Industrial Strategy",13/11/2019,R & D Current Grants to Central Government,"Industrial Strategy, Science and Innovation - International Science and Innovation",Foreign and Commonwealth Office (FCO),315082,8.99,NEWTON FUND - Brazil-R & D Current Grants to Central Government,MK10 1PX,WGA ONLY
"Department for Business, Energy and Industrial Strategy","Department for Business, Energy and Industrial Strategy",13/11/2019,R & D Current Grants to Central Government,"Industrial Strategy, Science and Innovation - International Science and Innovation",Foreign and Commonwealth Office (FCO),315083,9.86,NEWTON FUND - Brazil-R & D Current Grants to Central Government,MK10 1PX,WGA ONLY
"Department for Business, Energy and Industrial Strategy","Department for Business, Energy and Industrial Strategy",13/11/2019,R & D Current Grants to Central Government,"Industrial Strategy, Science and Innovation - International Science and Innovation",Foreign and Commonwealth Office (FCO),315084,14.07,NEWTON FUND - Brazil-R & D Current Grants to Central Government,MK10 1PX,WGA ONLY
"Department for Business, Energy and Industrial Strategy","Department for Business, Energy and Industrial Strategy",13/11/2019,R & D Current Grants to Central Government,"Industrial Strategy, Science and Innovation - International Science and Innovation",Foreign and Commonwealth Office (FCO),315085,1.8,NEWTON FUND - China-R & D Current Grants to Central Government,MK10 1PX,WGA ONLY
"Department for Business, Energy and Industrial Strategy","Department for Business, Energy and Industrial Strategy",13/11/2019,R & D Current Grants to Central Government,"Industrial Strategy, Science and Innovation - International Science and Innovation",Foreign and Commonwealth Office (FCO),315086,2.55,NEWTON FUND - China-R & D Current Grants to Central Government,MK10 1PX,WGA ONLY
"Department for Business, Energy and Industrial Strategy","Department for Business, Energy and Industrial Strategy",13/11/2019,R & D Current Grants to Central Government,"Industrial Strategy, Science and Innovation - International Science and Innovation",Foreign and Commonwealth Office (FCO),315087,6,NEWTON FUND - China-R & D Current Grants to Central Government,MK10 1PX,WGA ONLY
"Department for Business, Energy and Industrial Strategy","Department for Business, Energy and Industrial Strategy",13/11/2019,R & D Current Grants to Central Government,"Industrial Strategy, Science and Innovation - International Science and Innovation",Foreign and Commonwealth Office (FCO),315088,8.49,NEWTON FUND - China-R & D Current Grants to Central Government,MK10 1PX,WGA ONLY
"Department for Business, Energy and Industrial Strategy","Department for Business, Energy and Industrial Strategy",13/11/2019,R & D Current Grants to Central Government,"Industrial Strategy, Science and Innovation - International Science and Innovation",Foreign and Commonwealth Office (FCO),315089,12,NEWTON FUND - China-R & D Current Grants to Central Government,MK10 1PX,WGA ONLY
"Department for Business, Energy and Industrial Strategy","Department for Business, Energy and Industrial Strategy",13/11/2019,R & D Current Grants to Central Government,"Industrial Strategy, Science and Innovation - International Science and Innovation",Foreign and Commonwealth Office (FCO),315090,13.5,NEWTON FUND - China-R & D Current Grants to Central Government,MK10 1PX,WGA ONLY
"Department for Business, Energy and Industrial Strategy","Department for Business, Energy and Industrial Strategy",13/11/2019,R & D Current Grants to Central Government,"Industrial Strategy, Science and Innovation - International Science and Innovation",Foreign and Commonwealth Office (FCO),315091,13.5,NEWTON FUND - China-R & D Current Grants to Central Government,MK10 1PX,WGA ONLY
"Department for Business, Energy and Industrial Strategy","Department for Business, Energy and Industrial Strategy",13/11/2019,R & D Current Grants to Central Government,"Industrial Strategy, Science and Innovation - International Science and Innovation",Foreign and Commonwealth Office (FCO),315092,19.2,NEWTON FUND - China-R & D Current Grants to Central Government,MK10 1PX,WGA ONLY
"Department for Business, Energy and Industrial Strategy","Department for Business, Energy and Industrial Strategy",13/11/2019,R & D Current Grants to Central Government,"Industrial Strategy, Science and Innovation - International Science and Innovation",Foreign and Commonwealth Office (FCO),315093,30.05,NEWTON FUND - China-R & D Current Grants to Central Government,MK10 1PX,WGA ONLY
"Department for Business, Energy and Industrial Strategy","Department for Business, Energy and Industrial Strategy",13/11/2019,R & D Current Grants to Central Government,"Industrial Strategy, Science and Innovation - International Science and Innovation",Foreign and Commonwealth Office (FCO),315094,1.19,NEWTON FUND - Malaysia-R & D Current Grants to Central Government,MK10 1PX,WGA ONLY
"Department for Business, Energy and Industrial Strategy","Department for Business, Energy and Industrial Strategy",13/11/2019,R & D Current Grants to Central Government,"Industrial Strategy, Science and Innovation - International Science and Innovation",Foreign and Commonwealth Office (FCO),315095,1.36,NEWTON FUND - Malaysia-R & D Current Grants to Central Government,MK10 1PX,WGA ONLY
"Department for Business, Energy and Industrial Strategy","Department for Business, Energy and Industrial Strategy",13/11/2019,R & D Current Grants to Central Government,"Industrial Strategy, Science and Innovation - International Science and Innovation",Foreign and Commonwealth Office (FCO),315096,2.25,NEWTON FUND - Malaysia-R & D Current Grants to Central Government,MK10 1PX,WGA ONLY
"Department for Business, Energy and Industrial Strategy","Department for Business, Energy and Industrial Strategy",13/11/2019,R & D Current Grants to Central Government,"Industrial Strategy, Science and Innovation - International Science and Innovation",Foreign and Commonwealth Office (FCO),315097,14.31,NEWTON FUND - Malaysia-R & D Current Grants to Central Government,MK10 1PX,WGA ONLY
"Department for Business, Energy and Industrial Strategy","Department for Business, Energy and Industrial Strategy",13/11/2019,R & D Current Grants to Central Government,"Industrial Strategy, Science and Innovation - International Science and Innovation",Foreign and Commonwealth Office (FCO),315098,19.16,NEWTON FUND - Malaysia-R & D Current Grants to Central Government,MK10 1PX,WGA ONLY
"Department for Business, Energy and Industrial Strategy","Department for Business, Energy and Industrial Strategy",13/11/2019,R & D Current Grants to Central Government,"Industrial Strategy, Science and Innovation - International Science and Innovation",Foreign and Commonwealth Office (FCO),315099,26.96,NEWTON FUND - Malaysia-R & D Current Grants to Central Government,MK10 1PX,WGA ONLY
"Department for Business, Energy and Industrial Strategy","Department for Business, Energy and Industrial Strategy",13/11/2019,R & D Current Grants to Central Government,"Industrial Strategy, Science and Innovation - International Science and Innovation",Foreign and Commonwealth Office (FCO),315100,1.36,NEWTON FUND - Malaysia-R & D Current Grants to Central Government,MK10 1PX,WGA ONLY
"Department for Business, Energy and Industrial Strategy","Department for Business, Energy and Industrial Strategy",13/11/2019,R & D Current Grants to Central Government,"Industrial Strategy, Science and Innovation - International Science and Innovation",Foreign and Commonwealth Office (FCO),315101,1.36,NEWTON FUND - Malaysia-R & D Current Grants to Central Government,MK10 1PX,WGA ONLY
"Department for Business, Energy and Industrial Strategy","Department for Business, Energy and Industrial Strategy",13/11/2019,R & D Current Grants to Central Government,"Industrial Strategy, Science and Innovation - International Science and Innovation",Foreign and Commonwealth Office (FCO),315102,2.25,NEWTON FUND - Malaysia-R & D Current Grants to Central Government,MK10 1PX,WGA ONLY
"Department for Business, Energy and Industrial Strategy","Department for Business, Energy and Industrial Strategy",13/11/2019,R & D Current Grants to Central Government,"Industrial Strategy, Science and Innovation - International Science and Innovation",Foreign and Commonwealth Office (FCO),315103,3.69,NEWTON FUND - Malaysia-R & D Current Grants to Central Government,MK10 1PX,WGA ONLY
"Department for Business, Energy and Industrial Strategy","Department for Business, Energy and Industrial Strategy",13/11/2019,R & D Current Grants to Central Government,"Industrial Strategy, Science and Innovation - International Science and Innovation",Foreign and Commonwealth Office (FCO),315104,6.08,NEWTON FUND - Malaysia-R & D Current Grants to Central Government,MK10 1PX,WGA ONLY
"Department for Business, Energy and Industrial Strategy","Department for Business, Energy and Industrial Strategy",13/11/2019,R & D Current Grants to Central Government,"Industrial Strategy, Science and Innovation - International Science and Innovation",Foreign and Commonwealth Office (FCO),315105,9.52,NEWTON FUND - Malaysia-R & D Current Grants to Central Government,MK10 1PX,WGA ONLY
"Department for Business, Energy and Industrial Strategy","Department for Business, Energy and Industrial Strategy",13/11/2019,R & D Current Grants to Central Government,"Industrial Strategy, Science and Innovation - International Science and Innovation",Foreign and Commonwealth Office (FCO),315106,10.14,NEWTON FUND - Malaysia-R & D Current Grants to Central Government,MK10 1PX,WGA ONLY
"Department for Business, Energy and Industrial Strategy","Department for Business, Energy and Industrial Strategy",13/11/2019,R & D Current Grants to Central Government,"Industrial Strategy, Science and Innovation - International Science and Innovation",Foreign and Commonwealth Office (FCO),315107,10.3,NEWTON FUND - Malaysia-R & D Current Grants to Central Government,MK10 1PX,WGA ONLY
"Department for Business, Energy and Industrial Strategy","Department for Business, Energy and Industrial Strategy",13/11/2019,R & D Current Grants to Central Government,"Industrial Strategy, Science and Innovation - International Science and Innovation",Foreign and Commonwealth Office (FCO),315108,10.36,NEWTON FUND - Malaysia-R & D Current Grants to Central Government,MK10 1PX,WGA ONLY
"Department for Business, Energy and Industrial Strategy","Department for Business, Energy and Industrial Strategy",13/11/2019,R & D Current Grants to Central Government,"Industrial Strategy, Science and Innovation - International Science and Innovation",Foreign and Commonwealth Office (FCO),315109,24.4,NEWTON FUND - Malaysia-R & D Current Grants to Central Government,MK10 1PX,WGA ONLY
"Department for Business, Energy and Industrial Strategy","Department for Business, Energy and Industrial Strategy",13/11/2019,R & D Current Grants to Central Government,"Industrial Strategy, Science and Innovation - International Science and Innovation",Foreign and Commonwealth Office (FCO),315110,25.62,NEWTON FUND - Malaysia-R & D Current Grants to Central Government,MK10 1PX,WGA ONLY
"Department for Business, Energy and Industrial Strategy","Department for Business, Energy and Industrial Strategy",13/11/2019,R & D Current Grants to Central Government,"Industrial Strategy, Science and Innovation - International Science and Innovation",Foreign and Commonwealth Office (FCO),315111,27.46,NEWTON FUND - Malaysia-R & D Current Grants to Central Government,MK10 1PX,WGA ONLY
"Department for Business, Energy and Industrial Strategy","Department for Business, Energy and Industrial Strategy",13/11/2019,R & D Current Grants to Central Government,"Industrial Strategy, Science and Innovation - International Science and Innovation",Foreign and Commonwealth Office (FCO),315112,15.65,NEWTON FUND - Turkey-R & D Current Grants to Central Government,MK10 1PX,WGA ONLY
"Department for Business, Energy and Industrial Strategy","Department for Business, Energy and Industrial Strategy",13/11/2019,R & D Current Grants to Central Government,"Industrial Strategy, Science and Innovation - International Science and Innovation",Foreign and Commonwealth Office (FCO),315113,15.35,NEWTON FUND - China-R & D Current Grants to Central Government,MK10 1PX,WGA ONLY
"Department for Business, Energy and Industrial Strategy","Department for Business, Energy and Industrial Strategy",13/11/2019,R & D Current Grants to Central Government,"Industrial Strategy, Science and Innovation - International Science and Innovation",Foreign and Commonwealth Office (FCO),315114,93.63,NEWTON FUND - Brazil-R & D Current Grants to Central Government,MK10 1PX,WGA ONLY
"Department for Business, Energy and Industrial Strategy","Department for Business, Energy and Industrial Strategy",13/11/2019,R & D Current Grants to Central Government,"Industrial Strategy, Science and Innovation - International Science and Innovation",Foreign and Commonwealth Office (FCO),315115,169.54,NEWTON FUND - Brazil-R & D Current Grants to Central Government,MK10 1PX,WGA ONLY
"Department for Business, Energy and Industrial Strategy","Department for Business, Energy and Industrial Strategy",13/11/2019,R & D Current Grants to Central Government,"Industrial Strategy, Science and Innovation - International Science and Innovation",Foreign and Commonwealth Office (FCO),315116,6.11,NEWTON FUND - Brazil-R & D Current Grants to Central Government,MK10 1PX,WGA ONLY
"Department for Business, Energy and Industrial Strategy","Department for Business, Energy and Industrial Strategy",13/11/2019,R & D Current Grants to Central Government,"Industrial Strategy, Science and Innovation - International Science and Innovation",Foreign and Commonwealth Office (FCO),315117,6.11,NEWTON FUND - Brazil-R & D Current Grants to Central Government,MK10 1PX,WGA ONLY
"Department for Business, Energy and Industrial Strategy","Department for Business, Energy and Industrial Strategy",13/11/2019,R & D Current Grants to Central Government,"Industrial Strategy, Science and Innovation - International Science and Innovation",Foreign and Commonwealth Office (FCO),315118,167.06,NEWTON FUND - Brazil-R & D Current Grants to Central Government,MK10 1PX,WGA ONLY
"Department for Business, Energy and Industrial Strategy","Department for Business, Energy and Industrial Strategy",13/11/2019,R & D Current Grants to Central Government,"Industrial Strategy, Science and Innovation - International Science and Innovation",Foreign and Commonwealth Office (FCO),315119,6.11,NEWTON FUND - Brazil-R & D Current Grants to Central Government,MK10 1PX,WGA ONLY
"Department for Business, Energy and Industrial Strategy","Department for Business, Energy and Industrial Strategy",13/11/2019,R & D Current Grants to Central Government,"Industrial Strategy, Science and Innovation - International Science and Innovation",Foreign and Commonwealth Office (FCO),315120,8.18,Newton Fund - Peru-R & D Current Grants to Central Government,MK10 1PX,WGA ONLY
"Department for Business, Energy and Industrial Strategy","Department for Business, Energy and Industrial Strategy",13/11/2019,R & D Current Grants to Central Government,"Industrial Strategy, Science and Innovation - International Science and Innovation",Foreign and Commonwealth Office (FCO),315121,145.42,Newton Fund - Kenya-R & D Current Grants to Central Government,MK10 1PX,WGA ONLY
"Department for Business, Energy and Industrial Strategy","Department for Business, Energy and Industrial Strategy",13/11/2019,R & D Current Grants to Central Government,"Industrial Strategy, Science and Innovation - International Science and Innovation",Foreign and Commonwealth Office (FCO),315122,17.08,Newton Fund - Kenya-R & D Current Grants to Central Government,MK10 1PX,WGA ONLY
"Department for Business, Energy and Industrial Strategy","Department for Business, Energy and Industrial Strategy",13/11/2019,R & D Current Grants to Central Government,"Industrial Strategy, Science and Innovation - International Science and Innovation",Foreign and Commonwealth Office (FCO),315123,464.37,Newton Fund - Kenya-R & D Current Grants to Central Government,MK10 1PX,WGA ONLY
"Department for Business, Energy and Industrial Strategy","Department for Business, Energy and Industrial Strategy",13/11/2019,R & D Current Grants to Central Government,"Industrial Strategy, Science and Innovation - International Science and Innovation",Foreign and Commonwealth Office (FCO),315124,13.45,Newton Fund - Kenya-R & D Current Grants to Central Government,MK10 1PX,WGA ONLY
"Department for Business, Energy and Industrial Strategy","Department for Business, Energy and Industrial Strategy",13/11/2019,R & D Current Grants to Central Government,"Industrial Strategy, Science and Innovation - International Science and Innovation",Foreign and Commonwealth Office (FCO),315125,345.58,Newton Fund - Kenya-R & D Current Grants to Central Government,MK10 1PX,WGA ONLY
"Department for Business, Energy and Industrial Strategy","Department for Business, Energy and Industrial Strategy",13/11/2019,R & D Current Grants to Central Government,"Industrial Strategy, Science and Innovation - International Science and Innovation",Foreign and Commonwealth Office (FCO),315126,26.08,NEWTON FUND - Malaysia-R & D Current Grants to Central Government,MK10 1PX,WGA ONLY
"Department for Business, Energy and Industrial Strategy","Department for Business, Energy and Industrial Strategy",13/11/2019,R & D Current Grants to Central Government,"Industrial Strategy, Science and Innovation - International Science and Innovation",Foreign and Commonwealth Office (FCO),315127,23.71,NEWTON FUND - Malaysia-R & D Current Grants to Central Government,MK10 1PX,WGA ONLY
"Department for Business, Energy and Industrial Strategy","Department for Business, Energy and Industrial Strategy",13/11/2019,R & D Current Grants to Central Government,"Industrial Strategy, Science and Innovation - International Science and Innovation",Foreign and Commonwealth Office (FCO),315128,1800.41,NEWTON FUND - Mexico-R & D Current Grants to Central Government,MK10 1PX,WGA ONLY
"Department for Business, Energy and Industrial Strategy","Department for Business, Energy and Industrial Strategy",13/11/2019,R & D Current Grants to Central Government,"Industrial Strategy, Science and Innovation - International Science and Innovation",Foreign and Commonwealth Office (FCO),315129,410.96,NEWTON FUND - Philippines-R & D Current Grants to Central Government,MK10 1PX,WGA ONLY
"Department for Business, Energy and Industrial Strategy","Department for Business, Energy and Industrial Strategy",13/11/2019,R & D Current Grants to Private Sector - NPISH,"Industrial Strategy, Science and Innovation - International Science and Innovation",Foreign and Commonwealth Office (FCO),315130,682.12,NEWTON FUND - Philippines-R & D Current Grants to Private Sector - NPISH,MK10 1PX,WGA ONLY
"Department for Business, Energy and Industrial Strategy","Department for Business, Energy and Industrial Strategy",13/11/2019,R & D Current Grants to Central Government,"Industrial Strategy, Science and Innovation - International Science and Innovation",Foreign and Commonwealth Office (FCO),315131,95.5,NEWTON FUND - Philippines-R & D Current Grants to Central Government,MK10 1PX,WGA ONLY
"Department for Business, Energy and Industrial Strategy","Department for Business, Energy and Industrial Strategy",13/11/2019,R & D Current Grants to Central Government,"Industrial Strategy, Science and Innovation - International Science and Innovation",Foreign and Commonwealth Office (FCO),315132,2.84,NEWTON FUND - Brazil-R & D Current Grants to Central Government,MK10 1PX,WGA ONLY
"Department for Business, Energy and Industrial Strategy","Department for Business, Energy and Industrial Strategy",13/11/2019,R & D Current Grants to Central Government,"Industrial Strategy, Science and Innovation - International Science and Innovation",Foreign and Commonwealth Office (FCO),315133,2.84,NEWTON FUND - Brazil-R & D Current Grants to Central Government,MK10 1PX,WGA ONLY
"Department for Business, Energy and Industrial Strategy","Department for Business, Energy and Industrial Strategy",13/11/2019,R & D Current Grants to Private Sector - NPISH,"Industrial Strategy, Science and Innovation - International Science and Innovation",Foreign and Commonwealth Office (FCO),315134,104.09,NEWTON FUND - Egypt-R & D Current Grants to Private Sector - NPISH,MK10 1PX,WGA ONLY
"Department for Business, Energy and Industrial Strategy","Department for Business, Energy and Industrial Strategy",13/11/2019,R & D Current Grants to Private Sector - NPISH,"Industrial Strategy, Science and Innovation - International Science and Innovation",Foreign and Commonwealth Office (FCO),315135,104.09,NEWTON FUND - Egypt-R & D Current Grants to Private Sector - NPISH,MK10 1PX,WGA ONLY
"Department for Business, Energy and Industrial Strategy","Department for Business, Energy and Industrial Strategy",13/11/2019,R & D Current Grants to Central Government,"Industrial Strategy, Science and Innovation - International Science and Innovation",Foreign and Commonwealth Office (FCO),315136,396.39,Newton Fund - Jordan-R & D Current Grants to Central Government,MK10 1PX,WGA ONLY
"Department for Business, Energy and Industrial Strategy","Department for Business, Energy and Industrial Strategy",13/11/2019,R & D Current Grants to Central Government,"Industrial Strategy, Science and Innovation - International Science and Innovation",Foreign and Commonwealth Office (FCO),315137,396.39,Newton Fund - Jordan-R & D Current Grants to Central Government,MK10 1PX,WGA ONLY
"Department for Business, Energy and Industrial Strategy","Department for Business, Energy and Industrial Strategy",13/11/2019,R & D Current Grants to Central Government,"Industrial Strategy, Science and Innovation - International Science and Innovation",Foreign and Commonwealth Office (FCO),315138,947.62,Newton Fund - Peru-R & D Current Grants to Central Government,MK10 1PX,WGA ONLY
"Department for Business, Energy and Industrial Strategy","Department for Business, Energy and Industrial Strategy",13/11/2019,R & D Current Grants to Central Government,"Industrial Strategy, Science and Innovation - International Science and Innovation",Foreign and Commonwealth Office (FCO),315139,2211.16,NEWTON FUND - Turkey-R & D Current Grants to Central Government,MK10 1PX,WGA ONLY
"Department for Business, Energy and Industrial Strategy","Department for Business, Energy and Industrial Strategy",13/11/2019,R & D Current Grants to Central Government,"Industrial Strategy, Science and Innovation - International Science and Innovation",Foreign and Commonwealth Office (FCO),315140,2698.05,NEWTON FUND - Turkey-R & D Current Grants to Central Government,MK10 1PX,WGA ONLY
"Department for Business, Energy and Industrial Strategy","Department for Business, Energy and Industrial Strategy",13/11/2019,Business Rates,EU Exit and Analysis - EU Exit & Economic Partnerships,Foreign and Commonwealth Office (FCO),315141,1604.18,EU Exit Core BEIS Staff: EU Exit Programme ADM-Business Rates,MK10 1PX,WGA ONLY
"Department for Business, Energy and Industrial Strategy","Department for Business, Energy and Industrial Strategy",13/11/2019,Business Rates,EU Exit and Analysis - EU Exit & Economic Partnerships,Foreign and Commonwealth Office (FCO),315142,1604.18,EU Exit Core BEIS Staff: EU Exit Programme ADM-Business Rates,MK10 1PX,WGA ONLY
"Department for Business, Energy and Industrial Strategy","Department for Business, Energy and Industrial Strategy",13/11/2019,Business Rates,EU Exit and Analysis - EU Exit & Economic Partnerships,Foreign and Commonwealth Office (FCO),315143,-17.31,EU Exit Core BEIS Staff: EU Exit Programme ADM-Business Rates,MK10 1PX,WGA ONLY
"Department for Business, Energy and Industrial Strategy","Department for Business, Energy and Industrial Strategy",13/11/2019,Business Rates,EU Exit and Analysis - EU Exit & Economic Partnerships,Foreign and Commonwealth Office (FCO),315144,-48.07,EU Exit Core BEIS Staff: EU Exit Programme ADM-Business Rates,MK10 1PX,WGA ONLY
"Department for Business, Energy and Industrial Strategy","Department for Business, Energy and Industrial Strategy",13/11/2019,R & D Current Grants to Central Government,"Industrial Strategy, Science and Innovation - International Science and Innovation",Foreign and Commonwealth Office (FCO),315145,-396.39,Newton Fund - Jordan-R & D Current Grants to Central Government,MK10 1PX,WGA ONLY
"Department for Business, Energy and Industrial Strategy","Department for Business, Energy and Industrial Strategy",11/11/2019,R & D Current Grants to Private Sector - NPISH,"Industrial Strategy, Science and Innovation - Science and Research",OXFORDSHIRE COUNTY COUNCIL,315172,-250000,Core: AS16 R&D uplift - To OGDs-R & D Current Grants to Private Sector - NPISH,OX1 1NE,WGA ONLY
"Department for Business, Energy and Industrial Strategy","Department for Business, Energy and Industrial Strategy",15/11/2019,Hire of Interim Managers,Energy Transformation and Clean Growth - Industrial Energy,Allen Lane Ltd,315182,3590.14,EU Exit: No specific DExEU issue ADM-Hire of Interim Managers,BN11 2BW,VENDOR
"Department for Business, Energy and Industrial Strategy","Department for Business, Energy and Industrial Strategy",13/11/2019,R & D Current Grants to Private Sector - NPISH,Business Sectors - Advanced Manufacturing,LOUGHBOROUGH UNIVERSITY,315349,73032.8,Automotive: Advanced Propulsion Centre-R & D Current Grants to Private Sector - NPISH,LE11 3TU,GRANT
"Department for Business, Energy and Industrial Strategy","Department for Business, Energy and Industrial Strategy",12/11/2019,R & D Current Grants to Private Sector - NPISH,Business Sectors - Advanced Manufacturing,LOUGHBOROUGH UNIVERSITY,315350,56936.06,Automotive: Advanced Propulsion Centre-R & D Current Grants to Private Sector - NPISH,LE11 3TU,GRANT
"Department for Business, Energy and Industrial Strategy","Department for Business, Energy and Industrial Strategy",12/11/2019,R & D Current Grants to Private Sector - NPISH,Business Sectors - Advanced Manufacturing,LOUGHBOROUGH UNIVERSITY,315351,44280.91,Automotive: Advanced Propulsion Centre-R & D Current Grants to Private Sector - NPISH,LE11 3TU,GRANT
"Department for Business, Energy and Industrial Strategy","Department for Business, Energy and Industrial Strategy",11/11/2019,Recruitment Advice and Services,Business Sectors - EU Exit Business Readiness,Alexander Mann Solutions Ltd,315435,1700.46,EU Exit Core BEIS Staff: EU Exit Programme ADM-Recruitment Advice and Services,EC2N 3AQ,VENDOR
"Department for Business, Energy and Industrial Strategy","Department for Business, Energy and Industrial Strategy",06/11/2019,Personnel-related Expenditure,Corporate Services - Human Resources,Cabinet Office,315572,-19057.68,PSHE Non Devolved Admin-Personnel-related Expenditure,SW1A 2HQ,WGA ONLY
"Department for Business, Energy and Industrial Strategy","Department for Business, Energy and Industrial Strategy",28/11/2019,Outsourced Programme Management,Energy Transformation and Clean Growth - Energy Efficiency and Local,Sitel UK Ltd,315585,-41205.33,Energy Savings Advice Service-Outsourced Programme Management,CV1 3BH,VENDOR
"Department for Business, Energy and Industrial Strategy","Department for Business, Energy and Industrial Strategy",28/11/2019,Other Professional Services,Market Frameworks - Office for Product Safety and Standards,Sitel UK Ltd,315585,-13735.11,OPSS: National Capacity Incident Management-Other Professional Services,CV1 3BH,VENDOR
"Department for Business, Energy and Industrial Strategy","Department for Business, Energy and Industrial Strategy",28/11/2019,Other Professional Services,Market Frameworks - Office for Product Safety and Standards,Sitel UK Ltd,315585,19696.11,OPSS: National Capacity Incident Management-Other Professional Services,CV1 3BH,VENDOR
"Department for Business, Energy and Industrial Strategy","Department for Business, Energy and Industrial Strategy",28/11/2019,Outsourced Programme Management,Energy Transformation and Clean Growth - Energy Efficiency and Local,Sitel UK Ltd,315585,51726.46,Energy Savings Advice Service-Outsourced Programme Management,CV1 3BH,VENDOR
"Department for Business, Energy and Industrial Strategy","Department for Business, Energy and Industrial Strategy",21/11/2019,Training And Development Expenditure,Corporate Services - Human Resources,THE CHARTERED INSTITUTION OF BUILDING SERVICES ENGINEERS (CIBSE),315589,310,MF Devolved Admin-Training And Development Expenditure,SW12 9BS,VENDOR
"Department for Business, Energy and Industrial Strategy","Department for Business, Energy and Industrial Strategy",20/11/2019,Technical Advice / Services & Support,Market Frameworks - Office for Product Safety and Standards,The Child Accident Prevention Trust,315773,9995,OPSS: National Capacity Market Surveillance and Consumer-Technical Advice / Services & Support,E14 1SQ,VENDOR
"Department for Business, Energy and Industrial Strategy","Department for Business, Energy and Industrial Strategy",21/11/2019,Central Telecommunications Services,"Corporate Services - Digital, Data & Technology",CenturyLink Communications UK Ltd,316070,-4344.95,MF Devolved Admin-Central Telecommunications Services,RG24 8NA,VENDOR
"Department for Business, Energy and Industrial Strategy","Department for Business, Energy and Industrial Strategy",13/11/2019,Technical Advice / Services & Support,Market Frameworks - Office for Product Safety and Standards,Personal Name Withheld,316198,696.82,OPSS: Primary Authority-Technical Advice / Services & Support,EX19 ,VENDOR
"Department for Business, Energy and Industrial Strategy","Department for Business, Energy and Industrial Strategy",13/11/2019,Technical Advice / Services & Support,Market Frameworks - Office for Product Safety and Standards,Personal Name Withheld,316198,1838.76,OPSS: Primary Authority-Technical Advice / Services & Support,EX19 ,VENDOR
"Department for Business, Energy and Industrial Strategy","Department for Business, Energy and Industrial Strategy",13/11/2019,Technical Advice / Services & Support,Market Frameworks - Office for Product Safety and Standards,Personal Name Withheld,316198,2192.3,OPSS: Primary Authority-Technical Advice / Services & Support,EX19 ,VENDOR
"Department for Business, Energy and Industrial Strategy","Department for Business, Energy and Industrial Strategy",19/11/2019,R & D Current Grants to Central Government,"Industrial Strategy, Science and Innovation - International Science and Innovation",Foreign and Commonwealth Office (FCO),316209,2.3,NEWTON FUND - Turkey-R & D Current Grants to Central Government,MK10 1PX,WGA ONLY
"Department for Business, Energy and Industrial Strategy","Department for Business, Energy and Industrial Strategy",19/11/2019,R & D Current Grants to Central Government,"Industrial Strategy, Science and Innovation - International Science and Innovation",Foreign and Commonwealth Office (FCO),316210,4.31,NEWTON FUND - Turkey-R & D Current Grants to Central Government,MK10 1PX,WGA ONLY
"Department for Business, Energy and Industrial Strategy","Department for Business, Energy and Industrial Strategy",19/11/2019,R & D Current Grants to Central Government,"Industrial Strategy, Science and Innovation - International Science and Innovation",Foreign and Commonwealth Office (FCO),316211,7.46,NEWTON FUND - Turkey-R & D Current Grants to Central Government,MK10 1PX,WGA ONLY
"Department for Business, Energy and Industrial Strategy","Department for Business, Energy and Industrial Strategy",19/11/2019,R & D Current Grants to Central Government,"Industrial Strategy, Science and Innovation - International Science and Innovation",Foreign and Commonwealth Office (FCO),316212,5.99,NEWTON FUND - Indonesia-R & D Current Grants to Central Government,MK10 1PX,WGA ONLY
"Department for Business, Energy and Industrial Strategy","Department for Business, Energy and Industrial Strategy",19/11/2019,R & D Current Grants to Central Government,"Industrial Strategy, Science and Innovation - International Science and Innovation",Foreign and Commonwealth Office (FCO),316213,6.1,NEWTON FUND - Indonesia-R & D Current Grants to Central Government,MK10 1PX,WGA ONLY
"Department for Business, Energy and Industrial Strategy","Department for Business, Energy and Industrial Strategy",19/11/2019,R & D Current Grants to Central Government,"Industrial Strategy, Science and Innovation - International Science and Innovation",Foreign and Commonwealth Office (FCO),316214,6.62,NEWTON FUND - Indonesia-R & D Current Grants to Central Government,MK10 1PX,WGA ONLY
"Department for Business, Energy and Industrial Strategy","Department for Business, Energy and Industrial Strategy",19/11/2019,R & D Current Grants to Central Government,"Industrial Strategy, Science and Innovation - International Science and Innovation",Foreign and Commonwealth Office (FCO),316215,6.84,NEWTON FUND - Indonesia-R & D Current Grants to Central Government,MK10 1PX,WGA ONLY
"Department for Business, Energy and Industrial Strategy","Department for Business, Energy and Industrial Strategy",19/11/2019,R & D Current Grants to Central Government,"Industrial Strategy, Science and Innovation - International Science and Innovation",Foreign and Commonwealth Office (FCO),316216,7.02,NEWTON FUND - Indonesia-R & D Current Grants to Central Government,MK10 1PX,WGA ONLY
"Department for Business, Energy and Industrial Strategy","Department for Business, Energy and Industrial Strategy",19/11/2019,R & D Current Grants to Central Government,"Industrial Strategy, Science and Innovation - International Science and Innovation",Foreign and Commonwealth Office (FCO),316217,8.35,NEWTON FUND - Indonesia-R & D Current Grants to Central Government,MK10 1PX,WGA ONLY
"Department for Business, Energy and Industrial Strategy","Department for Business, Energy and Industrial Strategy",19/11/2019,R & D Current Grants to Central Government,"Industrial Strategy, Science and Innovation - International Science and Innovation",Foreign and Commonwealth Office (FCO),316218,8.66,NEWTON FUND - Indonesia-R & D Current Grants to Central Government,MK10 1PX,WGA ONLY
"Department for Business, Energy and Industrial Strategy","Department for Business, Energy and Industrial Strategy",19/11/2019,R & D Current Grants to Central Government,"Industrial Strategy, Science and Innovation - International Science and Innovation",Foreign and Commonwealth Office (FCO),316219,12.11,NEWTON FUND - Indonesia-R & D Current Grants to Central Government,MK10 1PX,WGA ONLY
"Department for Business, Energy and Industrial Strategy","Department for Business, Energy and Industrial Strategy",19/11/2019,R & D Current Grants to Central Government,"Industrial Strategy, Science and Innovation - International Science and Innovation",Foreign and Commonwealth Office (FCO),316220,12.22,NEWTON FUND - Indonesia-R & D Current Grants to Central Government,MK10 1PX,WGA ONLY
"Department for Business, Energy and Industrial Strategy","Department for Business, Energy and Industrial Strategy",19/11/2019,R & D Current Grants to Central Government,"Industrial Strategy, Science and Innovation - International Science and Innovation",Foreign and Commonwealth Office (FCO),316221,17.82,NEWTON FUND - Indonesia-R & D Current Grants to Central Government,MK10 1PX,WGA ONLY
"Department for Business, Energy and Industrial Strategy","Department for Business, Energy and Industrial Strategy",19/11/2019,R & D Current Grants to Central Government,"Industrial Strategy, Science and Innovation - International Science and Innovation",Foreign and Commonwealth Office (FCO),316222,18.92,NEWTON FUND - Indonesia-R & D Current Grants to Central Government,MK10 1PX,WGA ONLY
"Department for Business, Energy and Industrial Strategy","Department for Business, Energy and Industrial Strategy",19/11/2019,R & D Current Grants to Central Government,"Industrial Strategy, Science and Innovation - International Science and Innovation",Foreign and Commonwealth Office (FCO),316223,29.7,NEWTON FUND - Indonesia-R & D Current Grants to Central Government,MK10 1PX,WGA ONLY
"Department for Business, Energy and Industrial Strategy","Department for Business, Energy and Industrial Strategy",19/11/2019,R & D Current Grants to Central Government,"Industrial Strategy, Science and Innovation - International Science and Innovation",Foreign and Commonwealth Office (FCO),316224,35.83,NEWTON FUND - Indonesia-R & D Current Grants to Central Government,MK10 1PX,WGA ONLY
"Department for Business, Energy and Industrial Strategy","Department for Business, Energy and Industrial Strategy",19/11/2019,R & D Current Grants to Central Government,"Industrial Strategy, Science and Innovation - International Science and Innovation",Foreign and Commonwealth Office (FCO),316225,142.57,NEWTON FUND - Indonesia-R & D Current Grants to Central Government,MK10 1PX,WGA ONLY
"Department for Business, Energy and Industrial Strategy","Department for Business, Energy and Industrial Strategy",19/11/2019,R & D Current Grants to Central Government,"Industrial Strategy, Science and Innovation - International Science and Innovation",Foreign and Commonwealth Office (FCO),316226,178.53,NEWTON FUND - Indonesia-R & D Current Grants to Central Government,MK10 1PX,WGA ONLY
"Department for Business, Energy and Industrial Strategy","Department for Business, Energy and Industrial Strategy",19/11/2019,R & D Current Grants to Central Government,"Industrial Strategy, Science and Innovation - International Science and Innovation",Foreign and Commonwealth Office (FCO),316227,253.06,NEWTON FUND - Indonesia-R & D Current Grants to Central Government,MK10 1PX,WGA ONLY
"Department for Business, Energy and Industrial Strategy","Department for Business, Energy and Industrial Strategy",19/11/2019,R & D Current Grants to Central Government,"Industrial Strategy, Science and Innovation - International Science and Innovation",Foreign and Commonwealth Office (FCO),316228,423.96,NEWTON FUND - Indonesia-R & D Current Grants to Central Government,MK10 1PX,WGA ONLY
"Department for Business, Energy and Industrial Strategy","Department for Business, Energy and Industrial Strategy",19/11/2019,R & D Current Grants to Central Government,"Industrial Strategy, Science and Innovation - International Science and Innovation",Foreign and Commonwealth Office (FCO),316229,0.29,NEWTON FUND - Indonesia-R & D Current Grants to Central Government,MK10 1PX,WGA ONLY
"Department for Business, Energy and Industrial Strategy","Department for Business, Energy and Industrial Strategy",19/11/2019,R & D Current Grants to Central Government,"Industrial Strategy, Science and Innovation - International Science and Innovation",Foreign and Commonwealth Office (FCO),316230,0.29,NEWTON FUND - Indonesia-R & D Current Grants to Central Government,MK10 1PX,WGA ONLY
"Department for Business, Energy and Industrial Strategy","Department for Business, Energy and Industrial Strategy",19/11/2019,R & D Current Grants to Central Government,"Industrial Strategy, Science and Innovation - International Science and Innovation",Foreign and Commonwealth Office (FCO),316231,0.4,NEWTON FUND - Indonesia-R & D Current Grants to Central Government,MK10 1PX,WGA ONLY
"Department for Business, Energy and Industrial Strategy","Department for Business, Energy and Industrial Strategy",19/11/2019,R & D Current Grants to Central Government,"Industrial Strategy, Science and Innovation - International Science and Innovation",Foreign and Commonwealth Office (FCO),316232,0.52,NEWTON FUND - Indonesia-R & D Current Grants to Central Government,MK10 1PX,WGA ONLY
"Department for Business, Energy and Industrial Strategy","Department for Business, Energy and Industrial Strategy",19/11/2019,R & D Current Grants to Central Government,"Industrial Strategy, Science and Innovation - International Science and Innovation",Foreign and Commonwealth Office (FCO),316233,0.57,NEWTON FUND - Indonesia-R & D Current Grants to Central Government,MK10 1PX,WGA ONLY
"Department for Business, Energy and Industrial Strategy","Department for Business, Energy and Industrial Strategy",19/11/2019,R & D Current Grants to Central Government,"Industrial Strategy, Science and Innovation - International Science and Innovation",Foreign and Commonwealth Office (FCO),316234,0.86,NEWTON FUND - Indonesia-R & D Current Grants to Central Government,MK10 1PX,WGA ONLY
"Department for Business, Energy and Industrial Strategy","Department for Business, Energy and Industrial Strategy",19/11/2019,R & D Current Grants to Central Government,"Industrial Strategy, Science and Innovation - International Science and Innovation",Foreign and Commonwealth Office (FCO),316235,0.86,NEWTON FUND - Indonesia-R & D Current Grants to Central Government,MK10 1PX,WGA ONLY
"Department for Business, Energy and Industrial Strategy","Department for Business, Energy and Industrial Strategy",19/11/2019,R & D Current Grants to Central Government,"Industrial Strategy, Science and Innovation - International Science and Innovation",Foreign and Commonwealth Office (FCO),316236,0.92,NEWTON FUND - Indonesia-R & D Current Grants to Central Government,MK10 1PX,WGA ONLY
"Department for Business, Energy and Industrial Strategy","Department for Business, Energy and Industrial Strategy",19/11/2019,R & D Current Grants to Central Government,"Industrial Strategy, Science and Innovation - International Science and Innovation",Foreign and Commonwealth Office (FCO),316237,0.92,NEWTON FUND - Indonesia-R & D Current Grants to Central Government,MK10 1PX,WGA ONLY
"Department for Business, Energy and Industrial Strategy","Department for Business, Energy and Industrial Strategy",19/11/2019,R & D Current Grants to Central Government,"Industrial Strategy, Science and Innovation - International Science and Innovation",Foreign and Commonwealth Office (FCO),316238,0.97,NEWTON FUND - Indonesia-R & D Current Grants to Central Government,MK10 1PX,WGA ONLY
"Department for Business, Energy and Industrial Strategy","Department for Business, Energy and Industrial Strategy",19/11/2019,R & D Current Grants to Central Government,"Industrial Strategy, Science and Innovation - International Science and Innovation",Foreign and Commonwealth Office (FCO),316239,1.03,NEWTON FUND - Indonesia-R & D Current Grants to Central Government,MK10 1PX,WGA ONLY
"Department for Business, Energy and Industrial Strategy","Department for Business, Energy and Industrial Strategy",19/11/2019,R & D Current Grants to Central Government,"Industrial Strategy, Science and Innovation - International Science and Innovation",Foreign and Commonwealth Office (FCO),316240,1.03,NEWTON FUND - Indonesia-R & D Current Grants to Central Government,MK10 1PX,WGA ONLY
"Department for Business, Energy and Industrial Strategy","Department for Business, Energy and Industrial Strategy",19/11/2019,R & D Current Grants to Central Government,"Industrial Strategy, Science and Innovation - International Science and Innovation",Foreign and Commonwealth Office (FCO),316241,1.46,NEWTON FUND - Indonesia-R & D Current Grants to Central Government,MK10 1PX,WGA ONLY
"Department for Business, Energy and Industrial Strategy","Department for Business, Energy and Industrial Strategy",19/11/2019,R & D Current Grants to Central Government,"Industrial Strategy, Science and Innovation - International Science and Innovation",Foreign and Commonwealth Office (FCO),316242,1.61,NEWTON FUND - Indonesia-R & D Current Grants to Central Government,MK10 1PX,WGA ONLY
"Department for Business, Energy and Industrial Strategy","Department for Business, Energy and Industrial Strategy",19/11/2019,R & D Current Grants to Central Government,"Industrial Strategy, Science and Innovation - International Science and Innovation",Foreign and Commonwealth Office (FCO),316243,1.81,NEWTON FUND - Indonesia-R & D Current Grants to Central Government,MK10 1PX,WGA ONLY
"Department for Business, Energy and Industrial Strategy","Department for Business, Energy and Industrial Strategy",19/11/2019,R & D Current Grants to Central Government,"Industrial Strategy, Science and Innovation - International Science and Innovation",Foreign and Commonwealth Office (FCO),316244,2.52,NEWTON FUND - Indonesia-R & D Current Grants to Central Government,MK10 1PX,WGA ONLY
"Department for Business, Energy and Industrial Strategy","Department for Business, Energy and Industrial Strategy",19/11/2019,R & D Current Grants to Central Government,"Industrial Strategy, Science and Innovation - International Science and Innovation",Foreign and Commonwealth Office (FCO),316245,2.75,NEWTON FUND - Indonesia-R & D Current Grants to Central Government,MK10 1PX,WGA ONLY
"Department for Business, Energy and Industrial Strategy","Department for Business, Energy and Industrial Strategy",19/11/2019,R & D Current Grants to Central Government,"Industrial Strategy, Science and Innovation - International Science and Innovation",Foreign and Commonwealth Office (FCO),316246,3.21,NEWTON FUND - Indonesia-R & D Current Grants to Central Government,MK10 1PX,WGA ONLY
"Department for Business, Energy and Industrial Strategy","Department for Business, Energy and Industrial Strategy",19/11/2019,R & D Current Grants to Central Government,"Industrial Strategy, Science and Innovation - International Science and Innovation",Foreign and Commonwealth Office (FCO),316247,3.44,NEWTON FUND - Indonesia-R & D Current Grants to Central Government,MK10 1PX,WGA ONLY
"Department for Business, Energy and Industrial Strategy","Department for Business, Energy and Industrial Strategy",19/11/2019,R & D Current Grants to Central Government,"Industrial Strategy, Science and Innovation - International Science and Innovation",Foreign and Commonwealth Office (FCO),316248,4.3,NEWTON FUND - Indonesia-R & D Current Grants to Central Government,MK10 1PX,WGA ONLY
"Department for Business, Energy and Industrial Strategy","Department for Business, Energy and Industrial Strategy",19/11/2019,R & D Current Grants to Central Government,"Industrial Strategy, Science and Innovation - International Science and Innovation",Foreign and Commonwealth Office (FCO),316249,4.53,NEWTON FUND - Indonesia-R & D Current Grants to Central Government,MK10 1PX,WGA ONLY
"Department for Business, Energy and Industrial Strategy","Department for Business, Energy and Industrial Strategy",19/11/2019,R & D Current Grants to Central Government,"Industrial Strategy, Science and Innovation - International Science and Innovation",Foreign and Commonwealth Office (FCO),316250,5.5,NEWTON FUND - Indonesia-R & D Current Grants to Central Government,MK10 1PX,WGA ONLY
"Department for Business, Energy and Industrial Strategy","Department for Business, Energy and Industrial Strategy",19/11/2019,R & D Current Grants to Central Government,"Industrial Strategy, Science and Innovation - International Science and Innovation",Foreign and Commonwealth Office (FCO),316251,6.77,NEWTON FUND - Indonesia-R & D Current Grants to Central Government,MK10 1PX,WGA ONLY
"Department for Business, Energy and Industrial Strategy","Department for Business, Energy and Industrial Strategy",19/11/2019,R & D Current Grants to Central Government,"Industrial Strategy, Science and Innovation - International Science and Innovation",Foreign and Commonwealth Office (FCO),316252,7.68,NEWTON FUND - Indonesia-R & D Current Grants to Central Government,MK10 1PX,WGA ONLY
"Department for Business, Energy and Industrial Strategy","Department for Business, Energy and Industrial Strategy",19/11/2019,R & D Current Grants to Central Government,"Industrial Strategy, Science and Innovation - International Science and Innovation",Foreign and Commonwealth Office (FCO),316253,8.03,NEWTON FUND - Indonesia-R & D Current Grants to Central Government,MK10 1PX,WGA ONLY
"Department for Business, Energy and Industrial Strategy","Department for Business, Energy and Industrial Strategy",19/11/2019,R & D Current Grants to Central Government,"Industrial Strategy, Science and Innovation - International Science and Innovation",Foreign and Commonwealth Office (FCO),316254,8.48,NEWTON FUND - Indonesia-R & D Current Grants to Central Government,MK10 1PX,WGA ONLY
"Department for Business, Energy and Industrial Strategy","Department for Business, Energy and Industrial Strategy",19/11/2019,R & D Current Grants to Central Government,"Industrial Strategy, Science and Innovation - International Science and Innovation",Foreign and Commonwealth Office (FCO),316255,8.77,NEWTON FUND - Indonesia-R & D Current Grants to Central Government,MK10 1PX,WGA ONLY
"Department for Business, Energy and Industrial Strategy","Department for Business, Energy and Industrial Strategy",19/11/2019,R & D Current Grants to Central Government,"Industrial Strategy, Science and Innovation - International Science and Innovation",Foreign and Commonwealth Office (FCO),316256,9.87,NEWTON FUND - Indonesia-R & D Current Grants to Central Government,MK10 1PX,WGA ONLY
"Department for Business, Energy and Industrial Strategy","Department for Business, Energy and Industrial Strategy",19/11/2019,R & D Current Grants to Central Government,"Industrial Strategy, Science and Innovation - International Science and Innovation",Foreign and Commonwealth Office (FCO),316257,15.48,NEWTON FUND - Indonesia-R & D Current Grants to Central Government,MK10 1PX,WGA ONLY
"Department for Business, Energy and Industrial Strategy","Department for Business, Energy and Industrial Strategy",19/11/2019,R & D Current Grants to Central Government,"Industrial Strategy, Science and Innovation - International Science and Innovation",Foreign and Commonwealth Office (FCO),316258,28.67,NEWTON FUND - Indonesia-R & D Current Grants to Central Government,MK10 1PX,WGA ONLY
"Department for Business, Energy and Industrial Strategy","Department for Business, Energy and Industrial Strategy",19/11/2019,R & D Current Grants to Central Government,"Industrial Strategy, Science and Innovation - International Science and Innovation",Foreign and Commonwealth Office (FCO),316259,28.67,NEWTON FUND - Indonesia-R & D Current Grants to Central Government,MK10 1PX,WGA ONLY
"Department for Business, Energy and Industrial Strategy","Department for Business, Energy and Industrial Strategy",19/11/2019,R & D Current Grants to Central Government,"Industrial Strategy, Science and Innovation - International Science and Innovation",Foreign and Commonwealth Office (FCO),316260,2.4,Newton Fund - Peru-R & D Current Grants to Central Government,MK10 1PX,WGA ONLY
"Department for Business, Energy and Industrial Strategy","Department for Business, Energy and Industrial Strategy",19/11/2019,R & D Current Grants to Central Government,"Industrial Strategy, Science and Innovation - International Science and Innovation",Foreign and Commonwealth Office (FCO),316261,3.95,Newton Fund - Singapore-R & D Current Grants to Central Government,MK10 1PX,WGA ONLY
"Department for Business, Energy and Industrial Strategy","Department for Business, Energy and Industrial Strategy",19/11/2019,R & D Current Grants to Central Government,"Industrial Strategy, Science and Innovation - International Science and Innovation",Foreign and Commonwealth Office (FCO),316262,26,Newton Fund - Singapore-R & D Current Grants to Central Government,MK10 1PX,WGA ONLY
"Department for Business, Energy and Industrial Strategy","Department for Business, Energy and Industrial Strategy",19/11/2019,R & D Current Grants to Central Government,"Industrial Strategy, Science and Innovation - International Science and Innovation",Foreign and Commonwealth Office (FCO),316263,37,Newton Fund - Singapore-R & D Current Grants to Central Government,MK10 1PX,WGA ONLY
"Department for Business, Energy and Industrial Strategy","Department for Business, Energy and Industrial Strategy",19/11/2019,R & D Current Grants to Central Government,"Industrial Strategy, Science and Innovation - International Science and Innovation",Foreign and Commonwealth Office (FCO),316264,75.6,Newton Fund - Singapore-R & D Current Grants to Central Government,MK10 1PX,WGA ONLY
"Department for Business, Energy and Industrial Strategy","Department for Business, Energy and Industrial Strategy",19/11/2019,R & D Current Grants to Central Government,"Industrial Strategy, Science and Innovation - International Science and Innovation",Foreign and Commonwealth Office (FCO),316265,79.76,Newton Fund - Singapore-R & D Current Grants to Central Government,MK10 1PX,WGA ONLY
"Department for Business, Energy and Industrial Strategy","Department for Business, Energy and Industrial Strategy",19/11/2019,R & D Current Grants to Central Government,"Industrial Strategy, Science and Innovation - International Science and Innovation",Foreign and Commonwealth Office (FCO),316266,450,Newton Fund - Singapore-R & D Current Grants to Central Government,MK10 1PX,WGA ONLY
"Department for Business, Energy and Industrial Strategy","Department for Business, Energy and Industrial Strategy",19/11/2019,R & D Current Grants to Central Government,"Industrial Strategy, Science and Innovation - International Science and Innovation",Foreign and Commonwealth Office (FCO),316267,13.5,Newton Fund - Singapore-R & D Current Grants to Central Government,MK10 1PX,WGA ONLY
"Department for Business, Energy and Industrial Strategy","Department for Business, Energy and Industrial Strategy",19/11/2019,R & D Current Grants to Central Government,"Industrial Strategy, Science and Innovation - International Science and Innovation",Foreign and Commonwealth Office (FCO),316268,21.25,Newton Fund - Singapore-R & D Current Grants to Central Government,MK10 1PX,WGA ONLY
"Department for Business, Energy and Industrial Strategy","Department for Business, Energy and Industrial Strategy",19/11/2019,Hotel & Accommodation,"Corporate Services - Policy, Delivery and Private Office",Foreign and Commonwealth Office (FCO),316269,45.3,MF Devolved Admin-Hotel & Accommodation,MK10 1PX,WGA ONLY
"Department for Business, Energy and Industrial Strategy","Department for Business, Energy and Industrial Strategy",19/11/2019,Hotel & Accommodation,"Corporate Services - Policy, Delivery and Private Office",Foreign and Commonwealth Office (FCO),316269,562,MF Devolved Admin-Hotel & Accommodation,MK10 1PX,WGA ONLY
"Department for Business, Energy and Industrial Strategy","Department for Business, Energy and Industrial Strategy",19/11/2019,R & D Current Grants to Central Government,"Industrial Strategy, Science and Innovation - International Science and Innovation",Foreign and Commonwealth Office (FCO),316270,261.84,NEWTON FUND - Indonesia-R & D Current Grants to Central Government,MK10 1PX,WGA ONLY
"Department for Business, Energy and Industrial Strategy","Department for Business, Energy and Industrial Strategy",19/11/2019,R & D Current Grants to Central Government,"Industrial Strategy, Science and Innovation - International Science and Innovation",Foreign and Commonwealth Office (FCO),316271,57.2,NEWTON FUND - Indonesia-R & D Current Grants to Central Government,MK10 1PX,WGA ONLY
"Department for Business, Energy and Industrial Strategy","Department for Business, Energy and Industrial Strategy",19/11/2019,R & D Current Grants to Central Government,"Industrial Strategy, Science and Innovation - International Science and Innovation",Foreign and Commonwealth Office (FCO),316272,107,NEWTON FUND - China-R & D Current Grants to Central Government,MK10 1PX,WGA ONLY
"Department for Business, Energy and Industrial Strategy","Department for Business, Energy and Industrial Strategy",19/11/2019,R & D Current Grants to Central Government,"Industrial Strategy, Science and Innovation - International Science and Innovation",Foreign and Commonwealth Office (FCO),316274,107.24,NEWTON FUND - China-R & D Current Grants to Central Government,MK10 1PX,WGA ONLY
"Department for Business, Energy and Industrial Strategy","Department for Business, Energy and Industrial Strategy",19/11/2019,R & D Current Grants to Central Government,"Industrial Strategy, Science and Innovation - International Science and Innovation",Foreign and Commonwealth Office (FCO),316275,16,NEWTON FUND - China-R & D Current Grants to Central Government,MK10 1PX,WGA ONLY
"Department for Business, Energy and Industrial Strategy","Department for Business, Energy and Industrial Strategy",19/11/2019,R & D Current Grants to Central Government,"Industrial Strategy, Science and Innovation - International Science and Innovation",Foreign and Commonwealth Office (FCO),316276,1.8,NEWTON FUND - Malaysia-R & D Current Grants to Central Government,MK10 1PX,WGA ONLY
"Department for Business, Energy and Industrial Strategy","Department for Business, Energy and Industrial Strategy",19/11/2019,R & D Current Grants to Central Government,"Industrial Strategy, Science and Innovation - International Science and Innovation",Foreign and Commonwealth Office (FCO),316277,4.3,NEWTON FUND - Malaysia-R & D Current Grants to Central Government,MK10 1PX,WGA ONLY
"Department for Business, Energy and Industrial Strategy","Department for Business, Energy and Industrial Strategy",19/11/2019,R & D Current Grants to Central Government,"Industrial Strategy, Science and Innovation - International Science and Innovation",Foreign and Commonwealth Office (FCO),316278,10,NEWTON FUND - Malaysia-R & D Current Grants to Central Government,MK10 1PX,WGA ONLY
"Department for Business, Energy and Industrial Strategy","Department for Business, Energy and Industrial Strategy",19/11/2019,R & D Current Grants to Central Government,"Industrial Strategy, Science and Innovation - International Science and Innovation",Foreign and Commonwealth Office (FCO),316279,13.74,NEWTON FUND - Malaysia-R & D Current Grants to Central Government,MK10 1PX,WGA ONLY
"Department for Business, Energy and Industrial Strategy","Department for Business, Energy and Industrial Strategy",19/11/2019,R & D Current Grants to Central Government,"Industrial Strategy, Science and Innovation - International Science and Innovation",Foreign and Commonwealth Office (FCO),316280,15.1,NEWTON FUND - Malaysia-R & D Current Grants to Central Government,MK10 1PX,WGA ONLY
"Department for Business, Energy and Industrial Strategy","Department for Business, Energy and Industrial Strategy",19/11/2019,R & D Current Grants to Central Government,"Industrial Strategy, Science and Innovation - International Science and Innovation",Foreign and Commonwealth Office (FCO),316281,15.5,NEWTON FUND - Malaysia-R & D Current Grants to Central Government,MK10 1PX,WGA ONLY
"Department for Business, Energy and Industrial Strategy","Department for Business, Energy and Industrial Strategy",19/11/2019,R & D Current Grants to Central Government,"Industrial Strategy, Science and Innovation - International Science and Innovation",Foreign and Commonwealth Office (FCO),316282,46.86,NEWTON FUND - Malaysia-R & D Current Grants to Central Government,MK10 1PX,WGA ONLY
"Department for Business, Energy and Industrial Strategy","Department for Business, Energy and Industrial Strategy",19/11/2019,R & D Current Grants to Central Government,"Industrial Strategy, Science and Innovation - International Science and Innovation",Foreign and Commonwealth Office (FCO),316283,64.99,NEWTON FUND - Malaysia-R & D Current Grants to Central Government,MK10 1PX,WGA ONLY
"Department for Business, Energy and Industrial Strategy","Department for Business, Energy and Industrial Strategy",19/11/2019,R & D Current Grants to Central Government,"Industrial Strategy, Science and Innovation - International Science and Innovation",Foreign and Commonwealth Office (FCO),316284,600,NEWTON FUND - Malaysia-R & D Current Grants to Central Government,MK10 1PX,WGA ONLY
"Department for Business, Energy and Industrial Strategy","Department for Business, Energy and Industrial Strategy",19/11/2019,R & D Current Grants to Central Government,"Industrial Strategy, Science and Innovation - International Science and Innovation",Foreign and Commonwealth Office (FCO),316285,1.44,NEWTON FUND - Malaysia-R & D Current Grants to Central Government,MK10 1PX,WGA ONLY
"Department for Business, Energy and Industrial Strategy","Department for Business, Energy and Industrial Strategy",19/11/2019,R & D Current Grants to Central Government,"Industrial Strategy, Science and Innovation - International Science and Innovation",Foreign and Commonwealth Office (FCO),316286,17.69,NEWTON FUND - Malaysia-R & D Current Grants to Central Government,MK10 1PX,WGA ONLY
"Department for Business, Energy and Industrial Strategy","Department for Business, Energy and Industrial Strategy",19/11/2019,R & D Current Grants to Central Government,"Industrial Strategy, Science and Innovation - International Science and Innovation",Foreign and Commonwealth Office (FCO),316287,32.7,NEWTON FUND - Malaysia-R & D Current Grants to Central Government,MK10 1PX,WGA ONLY
"Department for Business, Energy and Industrial Strategy","Department for Business, Energy and Industrial Strategy",19/11/2019,R & D Current Grants to Central Government,"Industrial Strategy, Science and Innovation - International Science and Innovation",Foreign and Commonwealth Office (FCO),316288,10,NEWTON FUND - Malaysia-R & D Current Grants to Central Government,MK10 1PX,WGA ONLY
"Department for Business, Energy and Industrial Strategy","Department for Business, Energy and Industrial Strategy",19/11/2019,R & D Current Grants to Central Government,"Industrial Strategy, Science and Innovation - International Science and Innovation",Foreign and Commonwealth Office (FCO),316289,37,NEWTON FUND - Malaysia-R & D Current Grants to Central Government,MK10 1PX,WGA ONLY
"Department for Business, Energy and Industrial Strategy","Department for Business, Energy and Industrial Strategy",19/11/2019,R & D Current Grants to Central Government,"Industrial Strategy, Science and Innovation - International Science and Innovation",Foreign and Commonwealth Office (FCO),316290,46.86,NEWTON FUND - Malaysia-R & D Current Grants to Central Government,MK10 1PX,WGA ONLY
"Department for Business, Energy and Industrial Strategy","Department for Business, Energy and Industrial Strategy",19/11/2019,R & D Current Grants to Central Government,"Industrial Strategy, Science and Innovation - International Science and Innovation",Foreign and Commonwealth Office (FCO),316291,365.58,NEWTON FUND - Brazil-R & D Current Grants to Central Government,MK10 1PX,WGA ONLY
"Department for Business, Energy and Industrial Strategy","Department for Business, Energy and Industrial Strategy",19/11/2019,R & D Current Grants to Central Government,"Industrial Strategy, Science and Innovation - International Science and Innovation",Foreign and Commonwealth Office (FCO),316292,560.11,NEWTON FUND - Brazil-R & D Current Grants to Central Government,MK10 1PX,WGA ONLY
"Department for Business, Energy and Industrial Strategy","Department for Business, Energy and Industrial Strategy",19/11/2019,R & D Current Grants to Central Government,"Industrial Strategy, Science and Innovation - International Science and Innovation",Foreign and Commonwealth Office (FCO),316293,553.74,NEWTON FUND - Brazil-R & D Current Grants to Central Government,MK10 1PX,WGA ONLY
"Department for Business, Energy and Industrial Strategy","Department for Business, Energy and Industrial Strategy",19/11/2019,R & D Current Grants to Central Government,"Industrial Strategy, Science and Innovation - International Science and Innovation",Foreign and Commonwealth Office (FCO),316294,249.04,NEWTON FUND - Mexico-R & D Current Grants to Central Government,MK10 1PX,WGA ONLY
"Department for Business, Energy and Industrial Strategy","Department for Business, Energy and Industrial Strategy",19/11/2019,Hotel & Accommodation Overseas,EU Exit and Analysis - EU Exit & Economic Partnerships,Foreign and Commonwealth Office (FCO),316295,1745.56,EU Expertise: General Costs-Hotel & Accommodation Overseas,MK10 1PX,WGA ONLY
"Department for Business, Energy and Industrial Strategy","Department for Business, Energy and Industrial Strategy",19/11/2019,R & D Current Grants to Central Government,"Industrial Strategy, Science and Innovation - International Science and Innovation",Foreign and Commonwealth Office (FCO),316296,870.2,NEWTON FUND - Mexico-R & D Current Grants to Central Government,MK10 1PX,WGA ONLY
"Department for Business, Energy and Industrial Strategy","Department for Business, Energy and Industrial Strategy",19/11/2019,R & D Current Grants to Central Government,"Industrial Strategy, Science and Innovation - International Science and Innovation",Foreign and Commonwealth Office (FCO),316297,33.72,Newton Fund - Peru-R & D Current Grants to Central Government,MK10 1PX,WGA ONLY
"Department for Business, Energy and Industrial Strategy","Department for Business, Energy and Industrial Strategy",19/11/2019,R & D Current Grants to Central Government,"Industrial Strategy, Science and Innovation - International Science and Innovation",Foreign and Commonwealth Office (FCO),316298,134.85,Newton Fund - Peru-R & D Current Grants to Central Government,MK10 1PX,WGA ONLY
"Department for Business, Energy and Industrial Strategy","Department for Business, Energy and Industrial Strategy",19/11/2019,R & D Current Grants to Central Government,"Industrial Strategy, Science and Innovation - International Science and Innovation",Foreign and Commonwealth Office (FCO),316299,-49.5,NEWTON FUND - China-R & D Current Grants to Central Government,MK10 1PX,WGA ONLY
"Department for Business, Energy and Industrial Strategy","Department for Business, Energy and Industrial Strategy",19/11/2019,Hotel & Accommodation Overseas,EU Exit and Analysis - EU Exit & Economic Partnerships,Foreign and Commonwealth Office (FCO),316300,-33.84,EU Expertise: General Costs-Hotel & Accommodation Overseas,MK10 1PX,WGA ONLY
"Department for Business, Energy and Industrial Strategy","Department for Business, Energy and Industrial Strategy",13/11/2019,Hospitality - UK,"Energy and Security - Energy Security, Networks and Markets","Personal Expense, Name Withheld",316352,45.9,MF Devolved Admin-Hospitality - UK,,EMPLOYEE
"Department for Business, Energy and Industrial Strategy","Department for Business, Energy and Industrial Strategy",05/11/2019,Business Rates,Energy Transformation and Clean Growth - International,Alexander Mann Solutions Ltd,316468,1284.09,International Climate Finance (ICF)-Business Rates,EC2N 3AQ,VENDOR
"Department for Business, Energy and Industrial Strategy","Department for Business, Energy and Industrial Strategy",11/11/2019,Recruitment Advice and Services,Business Sectors - EU Exit Business Readiness,Alexander Mann Solutions Ltd,316580,1700.46,EU Exit Core BEIS Staff: EU Exit Programme ADM-Recruitment Advice and Services,EC2N 3AQ,VENDOR
"Department for Business, Energy and Industrial Strategy","Department for Business, Energy and Industrial Strategy",04/11/2019,Taxi Services UK,Corporate Services - Communications,"Personal Expense, Name Withheld",316648,16.6,MF Devolved Admin-Taxi Services UK,,EMPLOYEE
"Department for Business, Energy and Industrial Strategy","Department for Business, Energy and Industrial Strategy",11/11/2019,Other Professional Services,Market Frameworks - Office for Product Safety and Standards,BUILDING RESEARCH ESTABLISHMENT LTD (BRE),316888,21000,OPSS: National Capacity Scientific and Technical-Other Professional Services,WD25 9XX,VENDOR
"Department for Business, Energy and Industrial Strategy","Department for Business, Energy and Industrial Strategy",14/11/2019,Economic Consultancy & Research,"Industrial Strategy, Science and Innovation - Science and Research",ELSEVIER BV,316899,21429,MF Devolved Admin-Economic Consultancy & Research,1000AE,VENDOR
"Department for Business, Energy and Industrial Strategy","Department for Business, Energy and Industrial Strategy",05/11/2019,Stationery,Market Frameworks - Regulation Executive,Banner Group Limited,316907,89.87,MF Devolved Admin-Stationery,S9 1XU,VENDOR
"Department for Business, Energy and Industrial Strategy","Department for Business, Energy and Industrial Strategy",08/11/2019,R & D Outsourced Other,Energy Transformation and Clean Growth - Science and Innovation,Leeds Beckett University,316961,15000,Innovation Delivery Built Environment-R & D Outsourced Other,LS2 8NU,VENDOR
"Department for Business, Energy and Industrial Strategy","Department for Business, Energy and Industrial Strategy",07/11/2019,ICT Outsourcing & Maintenance/Support,EU Exit and Analysis - Analysis Directorate,Faculty Science Ltd,316962,1096.93,MF Devolved Admin-ICT Outsourcing & Maintenance/Support,W1G 9XS,VENDOR
"Department for Business, Energy and Industrial Strategy","Department for Business, Energy and Industrial Strategy",18/11/2019,Hire of Interim Managers,Energy Transformation and Clean Growth - Industrial Energy,Allen Lane Ltd,317158,-1329.68,EU Exit: No specific DExEU issue ADM-Hire of Interim Managers,BN11 2BW,VENDOR
"Department for Business, Energy and Industrial Strategy","Department for Business, Energy and Industrial Strategy",18/11/2019,Hire of Interim Managers,Energy Transformation and Clean Growth - Industrial Energy,Allen Lane Ltd,317158,424.19,EU Exit: No specific DExEU issue ADM-Hire of Interim Managers,BN11 2BW,VENDOR
"Department for Business, Energy and Industrial Strategy","Department for Business, Energy and Industrial Strategy",18/11/2019,Hire of Interim Managers,Energy Transformation and Clean Growth - Industrial Energy,Allen Lane Ltd,317158,1171.43,EU Exit: No specific DExEU issue ADM-Hire of Interim Managers,BN11 2BW,VENDOR
"Department for Business, Energy and Industrial Strategy","Department for Business, Energy and Industrial Strategy",18/11/2019,Hire of Interim Managers,Energy Transformation and Clean Growth - Industrial Energy,Allen Lane Ltd,317158,1329.68,EU Exit: No specific DExEU issue ADM-Hire of Interim Managers,BN11 2BW,VENDOR
"Department for Business, Energy and Industrial Strategy","Department for Business, Energy and Industrial Strategy",01/11/2019,Grant-In-Aid to Arms Length Bodies,Energy and Security - NDA,Nuclear Decommissioning Authority,317168,41000000,Nuclear Decommissioning Authority Grant in Aid-Grant-In-Aid to Arms Length Bodies,CA24 3HW,VENDOR
"Department for Business, Energy and Industrial Strategy","Department for Business, Energy and Industrial Strategy",01/11/2019,Grant-In-Aid to Arms Length Bodies,Energy and Security - NDA,Nuclear Decommissioning Authority,317168,210000000,Nuclear Decommissioning Authority Grant in Aid-Grant-In-Aid to Arms Length Bodies,CA24 3HW,VENDOR
"Department for Business, Energy and Industrial Strategy","Department for Business, Energy and Industrial Strategy",01/11/2019,Utilisation of Provisions - British Energy,Energy and Security - British Energy Historic Payments,Nuclear Decommissioning Authority,317171,10804232.12,British Energy Historic Liabilities Funding-Utilisation of Provisions - British Energy,CA24 3HW,VENDOR
"Department for Business, Energy and Industrial Strategy","Department for Business, Energy and Industrial Strategy",01/11/2019,Utilisation of Provisions - British Energy,Energy and Security - British Energy Historic Payments,Nuclear Decommissioning Authority,317185,2930596.25,British Energy Historic Liabilities Funding-Utilisation of Provisions - British Energy,CA24 3HW,VENDOR
"Department for Business, Energy and Industrial Strategy","Department for Business, Energy and Industrial Strategy",05/11/2019,ICT Outsourcing & Maintenance/Support,EU Exit and Analysis - Analysis Directorate,Code IT Recruitment Ltd,317189,13800,MF Devolved Admin-ICT Outsourcing & Maintenance/Support,EC2R 5BJ,VENDOR
"Department for Business, Energy and Industrial Strategy","Department for Business, Energy and Industrial Strategy",12/11/2019,Hire of Interim Managers,Corporate Services - Finance & Portfolio,Allen Lane Ltd,317206,3989.04,EU Exit Core BEIS Staff: Corporate Services ADM-Hire of Interim Managers,BN11 2BW,VENDOR
"Department for Business, Energy and Industrial Strategy","Department for Business, Energy and Industrial Strategy",27/11/2019,Purchase of Intangible Software,"Corporate Services - Digital, Data & Technology",SPECIALIST COMPUTER CENTRES (SSC),317354,2253.21,MF Devolved Admin-Purchase of Intangible Software,B11 2LE,VENDOR
"Department for Business, Energy and Industrial Strategy","Department for Business, Energy and Industrial Strategy",11/11/2019,Misc. Non Procurement Spend,"Corporate Services - Digital, Data & Technology",Bechtle Direct Ltd,317459,-404,MF Devolved Admin-Misc Non Procurement Spend,SN14 0GF,VENDOR
"Department for Business, Energy and Industrial Strategy","Department for Business, Energy and Industrial Strategy",11/11/2019,Misc. Non Procurement Spend,"Corporate Services - Digital, Data & Technology",Bechtle Direct Ltd,317459,1850.53,MF Devolved Admin-Misc Non Procurement Spend,SN14 0GF,VENDOR
"Department for Business, Energy and Industrial Strategy","Department for Business, Energy and Industrial Strategy",11/11/2019,Recruitment Advice and Services,Business Sectors - EU Exit Business Readiness,Alexander Mann Solutions Ltd,317481,1700.46,EU Exit Core BEIS Staff: EU Exit Programme ADM-Recruitment Advice and Services,EC2N 3AQ,VENDOR
"Department for Business, Energy and Industrial Strategy","Department for Business, Energy and Industrial Strategy",07/11/2019,Hire of Interim Managers,"Corporate Services - Digital, Data & Technology",Alexander Mann Solutions Ltd,317522,6267.13,MF Devolved Admin-Hire of Interim Managers,EC2N 3AQ,VENDOR
"Department for Business, Energy and Industrial Strategy","Department for Business, Energy and Industrial Strategy",07/11/2019,Hire of Interim Managers,"Corporate Services - Digital, Data & Technology",Alexander Mann Solutions Ltd,317523,2079.18,MF Devolved Admin-Hire of Interim Managers,EC2N 3AQ,VENDOR
"Department for Business, Energy and Industrial Strategy","Department for Business, Energy and Industrial Strategy",07/11/2019,R & D Contractors,Energy Transformation and Clean Growth - Science and Innovation,Alexander Mann Solutions Ltd,317533,2586.91,Climate Change Science-R & D Contractors,EC2N 3AQ,VENDOR
"Department for Business, Energy and Industrial Strategy","Department for Business, Energy and Industrial Strategy",12/11/2019,Current Grants To Private Sector - NPISH,"Industrial Strategy, Science and Innovation - International Science and Innovation",THE BRITISH COUNCIL,317541,17500,International: Policy EU And UK (Science Budget)-Current Grants To Private Sector - NPISH,SW1A 2BN,WGA ONLY
"Department for Business, Energy and Industrial Strategy","Department for Business, Energy and Industrial Strategy",26/11/2019,Leasing of Motor Vehicles,"Corporate Services - Policy, Delivery and Private Office",Department For Transport,317543,9511.32,MF Devolved Admin-Leasing of Motor Vehicles,SW1P 4DR,WGA ONLY
"Department for Business, Energy and Industrial Strategy","Department for Business, Energy and Industrial Strategy",26/11/2019,Leasing of Motor Vehicles,"Corporate Services - Policy, Delivery and Private Office",Department For Transport,317544,7115.4,MF Devolved Admin-Leasing of Motor Vehicles,SW1P 4DR,WGA ONLY
"Department for Business, Energy and Industrial Strategy","Department for Business, Energy and Industrial Strategy",04/11/2019,Hospitality - UK,Business Sectors - Office for Life Sciences,"Personal Expense, Name Withheld",317581,17.85,MF Devolved Admin-Hospitality - UK,,EMPLOYEE
"Department for Business, Energy and Industrial Strategy","Department for Business, Energy and Industrial Strategy",01/11/2019,Consultancy Expenditure,Market Frameworks - Office for Product Safety and Standards,LGC LTD,317617,9058.6,OPSS: National Capacity Testing-Consultancy Expenditure,TW11 0LY,GRANT
"Department for Business, Energy and Industrial Strategy","Department for Business, Energy and Industrial Strategy",11/11/2019,Misc. Non Procurement Spend,"Corporate Services - Digital, Data & Technology",Bechtle Direct Ltd,317619,108360.25,MF Devolved Admin-Misc Non Procurement Spend,SN14 0GF,VENDOR
"Department for Business, Energy and Industrial Strategy","Department for Business, Energy and Industrial Strategy",28/11/2019,R & D Current Grants to Central Government,"Industrial Strategy, Science and Innovation - International Science and Innovation",Foreign and Commonwealth Office (FCO),317620,125,NEWTON FUND - Colombia-R & D Current Grants to Central Government,MK10 1PX,WGA ONLY
"Department for Business, Energy and Industrial Strategy","Department for Business, Energy and Industrial Strategy",20/11/2019,Other IT Consultancy,"Corporate Services - Digital, Data & Technology",FDM Group Ltd,317623,6480,MF Devolved Admin-Other IT Consultancy,SE1 2QG,VENDOR
"Department for Business, Energy and Industrial Strategy","Department for Business, Energy and Industrial Strategy",05/11/2019,R & D Research and Development Expenditure,"Industrial Strategy, Science and Innovation - International Science and Innovation",MET OFFICE,317630,645000,Hadley Centre-R & D Research and Development Expenditure,EX1 3PB,WGA ONLY
"Department for Business, Energy and Industrial Strategy","Department for Business, Energy and Industrial Strategy",08/11/2019,Publications,Corporate Services - Finance & Portfolio,Ministry Of Justice,317632,-17936,MF Devolved Admin-Publications,SW1H 9AJ,WGA ONLY
"Department for Business, Energy and Industrial Strategy","Department for Business, Energy and Industrial Strategy",08/11/2019,Publications,Corporate Services - Finance & Portfolio,Ministry Of Justice,317632,8411,MF Devolved Admin-Publications,SW1H 9AJ,WGA ONLY
"Department for Business, Energy and Industrial Strategy","Department for Business, Energy and Industrial Strategy",08/11/2019,Publications,Corporate Services - Finance & Portfolio,Ministry Of Justice,317632,27461,MF Devolved Admin-Publications,SW1H 9AJ,WGA ONLY
"Department for Business, Energy and Industrial Strategy","Department for Business, Energy and Industrial Strategy",04/11/2019,Hire of Interim Managers,"Corporate Services - Digital, Data & Technology",Allen Lane Ltd,317636,7260,EU Exit Core BEIS Staff: Corporate Services ADM-Hire of Interim Managers,SW1Y 5JH,VENDOR
"Department for Business, Energy and Industrial Strategy","Department for Business, Energy and Industrial Strategy",04/11/2019,Hire of Interim Managers,"Corporate Services - Digital, Data & Technology",Allen Lane Ltd,317651,10890,EU Exit Core BEIS Staff: Corporate Services ADM-Hire of Interim Managers,SW1Y 5JH,VENDOR
"Department for Business, Energy and Industrial Strategy","Department for Business, Energy and Industrial Strategy",04/11/2019,Hire of Interim Managers,"Corporate Services - Digital, Data & Technology",Allen Lane Ltd,317654,3630,EU Exit Core BEIS Staff: Corporate Services ADM-Hire of Interim Managers,SW1Y 5JH,VENDOR
"Department for Business, Energy and Industrial Strategy","Department for Business, Energy and Industrial Strategy",01/11/2019,Hire of Interim Managers,"Corporate Services - Digital, Data & Technology",Allen Lane Ltd,317655,4020,EU Exit Core BEIS Staff: Corporate Services ADM-Hire of Interim Managers,SW1Y 5JH,VENDOR
"Department for Business, Energy and Industrial Strategy","Department for Business, Energy and Industrial Strategy",07/11/2019,Grant-In-Aid to Arms Length Bodies,Energy and Security - Nuclear Directorate,Civil Nuclear Police Authority (Civil Nuclear Constabulary),317665,38409.61,Civil Nuclear Police Authority Grant in Aid-Grant-In-Aid to Arms Length Bodies,CW7 9GR,WGA ONLY
"Department for Business, Energy and Industrial Strategy","Department for Business, Energy and Industrial Strategy",01/11/2019,Grant-In-Aid to Arms Length Bodies,Market Frameworks - Labour Market,ACAS,317699,3500000,ACAS Non-Budget-Grant-In-Aid to Arms Length Bodies,NW1 3JJ,WGA ONLY
"Department for Business, Energy and Industrial Strategy","Department for Business, Energy and Industrial Strategy",04/11/2019,Rail Travel UK,Business Sectors - Office for Life Sciences,"Personal Expense, Name Withheld",317791,33.3,MF Devolved Admin-Rail Travel UK,,EMPLOYEE
"Department for Business, Energy and Industrial Strategy","Department for Business, Energy and Industrial Strategy",04/11/2019,Hotel & Accommodation UK,Business Sectors - Office for Life Sciences,"Personal Expense, Name Withheld",317791,706.74,MF Devolved Admin-Hotel & Accommodation UK,,EMPLOYEE
"Department for Business, Energy and Industrial Strategy","Department for Business, Energy and Industrial Strategy",11/11/2019,Misc. Non Procurement Spend,"Corporate Services - Digital, Data & Technology",Bechtle Direct Ltd,317850,-57,MF Devolved Admin-Misc Non Procurement Spend,SN14 0GF,VENDOR
"Department for Business, Energy and Industrial Strategy","Department for Business, Energy and Industrial Strategy",11/11/2019,Misc. Non Procurement Spend,"Corporate Services - Digital, Data & Technology",Bechtle Direct Ltd,317850,286.82,MF Devolved Admin-Misc Non Procurement Spend,SN14 0GF,VENDOR
"Department for Business, Energy and Industrial Strategy","Department for Business, Energy and Industrial Strategy",06/11/2019,R & D Research and Development Expenditure,"Industrial Strategy, Science and Innovation - International Science and Innovation",NPL MANAGEMENT LTD,317893,8333.33,NPL - ISCF Other-R & D Research and Development Expenditure,TW11 0LW,VENDOR
"Department for Business, Energy and Industrial Strategy","Department for Business, Energy and Industrial Strategy",20/11/2019,Training And Development Expenditure,Market Frameworks - Regulation Executive,Dod's Parliamentary Communications Ltd,317894,2360,MF Devolved Admin-Training And Development Expenditure,SE1 9SG,VENDOR
"Department for Business, Energy and Industrial Strategy","Department for Business, Energy and Industrial Strategy",29/11/2019,ICT Outsourcing & Maintenance/Support,"Industrial Strategy, Science and Innovation - Business Investment Directorate",JEREMY BENN ASSOCIATES LTD,317896,12100.13,MF Devolved Admin-ICT Outsourcing & Maintenance/Support,BD23 3AE,VENDOR
"Department for Business, Energy and Industrial Strategy","Department for Business, Energy and Industrial Strategy",06/11/2019,R & D Research and Development Expenditure,"Industrial Strategy, Science and Innovation - International Science and Innovation",NPL MANAGEMENT LTD,317899,83333.33,NPL - ISCF Other-R & D Research and Development Expenditure,TW11 0LW,VENDOR
"Department for Business, Energy and Industrial Strategy","Department for Business, Energy and Industrial Strategy",01/11/2019,Consultancy Expenditure,"Corporate Services - Digital, Data & Technology",RESTORE PLC,317913,10141.33,MF Devolved Admin-Consultancy Expenditure,RH1 5DY,VENDOR
"Department for Business, Energy and Industrial Strategy","Department for Business, Energy and Industrial Strategy",06/11/2019,R & D Research and Development Expenditure,"Industrial Strategy, Science and Innovation - International Science and Innovation",NPL MANAGEMENT LTD,317914,104166.67,NPL - ISCF Medical Imaging-R & D Research and Development Expenditure,TW11 0LW,VENDOR
"Department for Business, Energy and Industrial Strategy","Department for Business, Energy and Industrial Strategy",01/11/2019,Training And Development Expenditure,Corporate Services - Human Resources,Management Training and Development Ltd T/A MTD Training,317915,-2201.5,MF Non Devolved Admin-Training And Development Expenditure,CV3 2TQ,VENDOR
"Department for Business, Energy and Industrial Strategy","Department for Business, Energy and Industrial Strategy",01/11/2019,Training And Development Expenditure,Corporate Services - Human Resources,Management Training and Development Ltd T/A MTD Training,317915,313.5,MF Non Devolved Admin-Training And Development Expenditure,CV3 2TQ,VENDOR
"Department for Business, Energy and Industrial Strategy","Department for Business, Energy and Industrial Strategy",01/11/2019,Training And Development Expenditure,Corporate Services - Human Resources,Management Training and Development Ltd T/A MTD Training,317915,4089.5,MF Non Devolved Admin-Training And Development Expenditure,CV3 2TQ,VENDOR
"Department for Business, Energy and Industrial Strategy","Department for Business, Energy and Industrial Strategy",06/11/2019,R & D Research and Development Expenditure,"Industrial Strategy, Science and Innovation - International Science and Innovation",NPL MANAGEMENT LTD,317916,338750,NMS - NPL  Cross Sector-R & D Research and Development Expenditure,TW11 0LW,VENDOR
"Department for Business, Energy and Industrial Strategy","Department for Business, Energy and Industrial Strategy",06/11/2019,R & D Research and Development Expenditure,"Industrial Strategy, Science and Innovation - International Science and Innovation",NPL MANAGEMENT LTD,317916,838083.33,NMS - NPL  Energy and Environment-R & D Research and Development Expenditure,TW11 0LW,VENDOR
"Department for Business, Energy and Industrial Strategy","Department for Business, Energy and Industrial Strategy",06/11/2019,R & D Research and Development Expenditure,"Industrial Strategy, Science and Innovation - International Science and Innovation",NPL MANAGEMENT LTD,317916,1110166.67,NMS - NPL  Life Sciences and Health-R & D Research and Development Expenditure,TW11 0LW,VENDOR
"Department for Business, Energy and Industrial Strategy","Department for Business, Energy and Industrial Strategy",06/11/2019,R & D Research and Development Expenditure,"Industrial Strategy, Science and Innovation - International Science and Innovation",NPL MANAGEMENT LTD,317916,1132416.67,NMS - NPL  Digital-R & D Research and Development Expenditure,TW11 0LW,VENDOR
"Department for Business, Energy and Industrial Strategy","Department for Business, Energy and Industrial Strategy",06/11/2019,R & D Research and Development Expenditure,"Industrial Strategy, Science and Innovation - International Science and Innovation",NPL MANAGEMENT LTD,317916,1271083.33,NMS - NPL Advanced Manufacturing-R & D Research and Development Expenditure,TW11 0LW,VENDOR
"Department for Business, Energy and Industrial Strategy","Department for Business, Energy and Industrial Strategy",11/11/2019,Hotel & Accommodation Overseas,Energy Transformation and Clean Growth - International,Plaza El Bosque Ebro (Icom SPA),317918,75418.4,Strengthening Support for the UK Objectives in UNFCCC and EU Negotiations-Hotel & Accommodation Overseas,.,VENDOR
"Department for Business, Energy and Industrial Strategy","Department for Business, Energy and Industrial Strategy",06/11/2019,R & D Research and Development Expenditure,"Industrial Strategy, Science and Innovation - International Science and Innovation",NPL MANAGEMENT LTD,317919,67916.67,NPL - ISCF Other-R & D Research and Development Expenditure,TW11 0LW,VENDOR
"Department for Business, Energy and Industrial Strategy","Department for Business, Energy and Industrial Strategy",08/11/2019,ICT Outsourcing & Maintenance/Support,"Industrial Strategy, Science and Innovation - Business Investment Directorate",JEREMY BENN ASSOCIATES LTD,317920,3771,MF Devolved Admin-ICT Outsourcing & Maintenance/Support,BD23 3AE,VENDOR
"Department for Business, Energy and Industrial Strategy","Department for Business, Energy and Industrial Strategy",28/11/2019,ICT Outsourcing & Maintenance/Support,Energy and Security - Energy Development and Resilience,Oil and Gas Authority,317921,66457.09,Oil and Gas IT - Electricity Infrastructure Portal-ICT Outsourcing & Maintenance/Support,WC1B 3HF,VENDOR
"Department for Business, Energy and Industrial Strategy","Department for Business, Energy and Industrial Strategy",01/11/2019,Current Grants To Private Sector - NPISH,"Industrial Strategy, Science and Innovation - Business Investment Directorate",National Federation of Fish Friers Ltd (The),317930,-33132,EU Exit: BRO Fund-Current Grants To Private Sector - NPISH,LS6 4LQ,GRANT
"Department for Business, Energy and Industrial Strategy","Department for Business, Energy and Industrial Strategy",01/11/2019,Current Grants To Private Sector - NPISH,"Industrial Strategy, Science and Innovation - Business Investment Directorate",National Federation of Fish Friers Ltd (The),317930,66444,EU Exit: BRO Fund-Current Grants To Private Sector - NPISH,LS6 4LQ,GRANT
"Department for Business, Energy and Industrial Strategy","Department for Business, Energy and Industrial Strategy",06/11/2019,Finance Training,Corporate Services - Finance & Portfolio,CAPITA BUSINESS SERVICES LTD T/A KNOWLEDGEPOOL,317947,-159.37,FCS Devolved Admin-Finance Training,DL1 9HN,VENDOR
"Department for Business, Energy and Industrial Strategy","Department for Business, Energy and Industrial Strategy",01/11/2019,Current Grants To Private Sector - NPISH,Energy Transformation and Clean Growth - Energy Efficiency and Local,ICF Consulting Services Ltd,317948,38643.37,Industrial Heat Policy And Research-Current Grants To Private Sector - NPISH,EC4R 1BE,VENDOR
"Department for Business, Energy and Industrial Strategy","Department for Business, Energy and Industrial Strategy",01/11/2019,Learning and Dev Services - BIS requests managed by PTSC,Corporate Services - Human Resources,AWAKEN LEARNING LTD,317960,4500,MF Non Devolved Admin-Learning and Dev Services - BIS requests managed by PTSC,DH4 6GL,VENDOR
"Department for Business, Energy and Industrial Strategy","Department for Business, Energy and Industrial Strategy",01/11/2019,Training And Development Expenditure,Corporate Services - Human Resources,AWAKEN LEARNING LTD,317961,1500,MF Non Devolved Admin-Training And Development Expenditure,DH4 6GL,VENDOR
"Department for Business, Energy and Industrial Strategy","Department for Business, Energy and Industrial Strategy",01/11/2019,Misc. Non Procurement Spend,Corporate Services - Human Resources,AWAKEN LEARNING LTD,317962,1500,MF Non Devolved Admin-Misc Non Procurement Spend,DH4 6GL,VENDOR
"Department for Business, Energy and Industrial Strategy","Department for Business, Energy and Industrial Strategy",06/11/2019,Finance Training,Corporate Services - Finance & Portfolio,CAPITA BUSINESS SERVICES LTD T/A KNOWLEDGEPOOL,317966,-350.13,FCS Devolved Admin-Finance Training,DL1 9HN,VENDOR
"Department for Business, Energy and Industrial Strategy","Department for Business, Energy and Industrial Strategy",06/11/2019,R & D Current Grants to Private Sector - NPISH,Energy and Security - Energy Development and Resilience,University of Bristol,318074,19000,Unconventional Oil and Gas Community-R & D Current Grants to Private Sector - NPISH,BS8 1TH,VENDOR
"Department for Business, Energy and Industrial Strategy","Department for Business, Energy and Industrial Strategy",01/11/2019,Economic Consultancy & Research,Market Frameworks - Office of Manpower Economics,INCOMES DATA RESEARCH LTD,318078,6797.5,MF Devolved Admin-Economic Consultancy & Research,WC2H 9JQ,VENDOR
"Department for Business, Energy and Industrial Strategy","Department for Business, Energy and Industrial Strategy",04/11/2019,Current Grants To Private Sector - NPISH,Energy Transformation and Clean Growth - International,Universidad De Los Andes,318083,78015.7,International Climate Finance (ICF)-Current Grants To Private Sector - NPISH,111711,GRANT
"Department for Business, Energy and Industrial Strategy","Department for Business, Energy and Industrial Strategy",04/11/2019,Current Grants To Private Sector - NPISH,Energy Transformation and Clean Growth - International,Los Viajes Del Boga SAS,318086,24585.62,International Climate Finance (ICF)-Current Grants To Private Sector - NPISH,.,GRANT
"Department for Business, Energy and Industrial Strategy","Department for Business, Energy and Industrial Strategy",07/11/2019,Stationery,Market Frameworks - Office for Product Safety and Standards,Banner Group Limited,318153,-311.28,OPSS: National Capacity Organisational Cross Cutting-Stationery,S9 1XU,VENDOR
"Department for Business, Energy and Industrial Strategy","Department for Business, Energy and Industrial Strategy",07/11/2019,Stationery,Market Frameworks - Office for Product Safety and Standards,Banner Group Limited,318153,3.6,OPSS: National Capacity Organisational Cross Cutting-Stationery,S9 1XU,VENDOR
"Department for Business, Energy and Industrial Strategy","Department for Business, Energy and Industrial Strategy",07/11/2019,Stationery,Market Frameworks - Office for Product Safety and Standards,Banner Group Limited,318153,29.76,OPSS: National Capacity Organisational Cross Cutting-Stationery,S9 1XU,VENDOR
"Department for Business, Energy and Industrial Strategy","Department for Business, Energy and Industrial Strategy",07/11/2019,Stationery,Market Frameworks - Office for Product Safety and Standards,Banner Group Limited,318153,30.15,OPSS: National Capacity Organisational Cross Cutting-Stationery,S9 1XU,VENDOR
"Department for Business, Energy and Industrial Strategy","Department for Business, Energy and Industrial Strategy",07/11/2019,Stationery,Market Frameworks - Office for Product Safety and Standards,Banner Group Limited,318153,33.56,OPSS: National Capacity Organisational Cross Cutting-Stationery,S9 1XU,VENDOR
"Department for Business, Energy and Industrial Strategy","Department for Business, Energy and Industrial Strategy",07/11/2019,Stationery,Market Frameworks - Office for Product Safety and Standards,Banner Group Limited,318153,276.46,OPSS: National Capacity Organisational Cross Cutting-Stationery,S9 1XU,VENDOR
"Department for Business, Energy and Industrial Strategy","Department for Business, Energy and Industrial Strategy",07/11/2019,Stationery,Market Frameworks - Office for Product Safety and Standards,Banner Group Limited,318153,311.28,OPSS: National Capacity Organisational Cross Cutting-Stationery,S9 1XU,VENDOR
"Department for Business, Energy and Industrial Strategy","Department for Business, Energy and Industrial Strategy",12/11/2019,Stationery,Business Sectors - EU Exit Business Readiness,Banner Group Limited,318154,12.18,MF Devolved Admin-Stationery,S9 1XU,VENDOR
"Department for Business, Energy and Industrial Strategy","Department for Business, Energy and Industrial Strategy",05/11/2019,Stationery,Market Frameworks - Office for Product Safety and Standards,Banner Group Limited,318155,2.58,OPSS: National Capacity Organisational Cross Cutting-Stationery,S9 1XU,VENDOR
"Department for Business, Energy and Industrial Strategy","Department for Business, Energy and Industrial Strategy",05/11/2019,Stationery,Market Frameworks - Office for Product Safety and Standards,Banner Group Limited,318155,9.8,OPSS: National Capacity Organisational Cross Cutting-Stationery,S9 1XU,VENDOR
"Department for Business, Energy and Industrial Strategy","Department for Business, Energy and Industrial Strategy",05/11/2019,Stationery,Market Frameworks - Office for Product Safety and Standards,Banner Group Limited,318155,11.16,OPSS: National Capacity Organisational Cross Cutting-Stationery,S9 1XU,VENDOR
"Department for Business, Energy and Industrial Strategy","Department for Business, Energy and Industrial Strategy",05/11/2019,Stationery,Market Frameworks - Office for Product Safety and Standards,Banner Group Limited,318155,11.21,OPSS: National Capacity Organisational Cross Cutting-Stationery,S9 1XU,VENDOR
"Department for Business, Energy and Industrial Strategy","Department for Business, Energy and Industrial Strategy",05/11/2019,Stationery,Market Frameworks - Office for Product Safety and Standards,Banner Group Limited,318155,18.72,OPSS: National Capacity Organisational Cross Cutting-Stationery,S9 1XU,VENDOR
"Department for Business, Energy and Industrial Strategy","Department for Business, Energy and Industrial Strategy",05/11/2019,Stationery,Market Frameworks - Office for Product Safety and Standards,Banner Group Limited,318155,20.76,OPSS: National Capacity Organisational Cross Cutting-Stationery,S9 1XU,VENDOR
"Department for Business, Energy and Industrial Strategy","Department for Business, Energy and Industrial Strategy",05/11/2019,Stationery,Market Frameworks - Office for Product Safety and Standards,Banner Group Limited,318155,43.25,OPSS: National Capacity Organisational Cross Cutting-Stationery,S9 1XU,VENDOR
"Department for Business, Energy and Industrial Strategy","Department for Business, Energy and Industrial Strategy",05/11/2019,Stationery,Market Frameworks - Office for Product Safety and Standards,Banner Group Limited,318155,43.6,OPSS: National Capacity Organisational Cross Cutting-Stationery,S9 1XU,VENDOR
"Department for Business, Energy and Industrial Strategy","Department for Business, Energy and Industrial Strategy",05/11/2019,Stationery,Market Frameworks - Office for Product Safety and Standards,Banner Group Limited,318155,43.6,OPSS: National Capacity Organisational Cross Cutting-Stationery,S9 1XU,VENDOR
"Department for Business, Energy and Industrial Strategy","Department for Business, Energy and Industrial Strategy",05/11/2019,Stationery,Market Frameworks - Office for Product Safety and Standards,Banner Group Limited,318155,160.69,OPSS: National Capacity Organisational Cross Cutting-Stationery,S9 1XU,VENDOR
"Department for Business, Energy and Industrial Strategy","Department for Business, Energy and Industrial Strategy",22/11/2019,Learning and Dev - CS Skills,Corporate Services - Human Resources,Inline Policy Ltd,318181,-8250,EU Exit: No specific DExEU issue ADM-Learning and Dev - CS Skills,SE11 5JH,VENDOR
"Department for Business, Energy and Industrial Strategy","Department for Business, Energy and Industrial Strategy",22/11/2019,Learning and Dev - CS Skills,Corporate Services - Human Resources,Inline Policy Ltd,318181,13750,EU Exit: HR ADM-Learning and Dev - CS Skills,SE11 5JH,VENDOR
"Department for Business, Energy and Industrial Strategy","Department for Business, Energy and Industrial Strategy",25/11/2019,Advertising,Corporate Services - Communications,Omnicom Media Group UK Ltd T/A Manning Gottlieb OMD,318182,34.54,EU Exit: CPG ADM-Advertising,SE1 0SW,VENDOR
"Department for Business, Energy and Industrial Strategy","Department for Business, Energy and Industrial Strategy",25/11/2019,Advertising,Corporate Services - Communications,Omnicom Media Group UK Ltd T/A Manning Gottlieb OMD,318182,34884.13,EU Exit: CPG ADM-Advertising,SE1 0SW,VENDOR
"Department for Business, Energy and Industrial Strategy","Department for Business, Energy and Industrial Strategy",25/11/2019,Advertising,Corporate Services - Communications,Omnicom Media Group UK Ltd T/A Manning Gottlieb OMD,318185,-227131.49,EU Exit: CPG ADM-Advertising,SE1 0SW,VENDOR
"Department for Business, Energy and Industrial Strategy","Department for Business, Energy and Industrial Strategy",25/11/2019,Advertising,Corporate Services - Communications,Omnicom Media Group UK Ltd T/A Manning Gottlieb OMD,318185,-224.88,EU Exit: CPG ADM-Advertising,SE1 0SW,VENDOR
"Department for Business, Energy and Industrial Strategy","Department for Business, Energy and Industrial Strategy",25/11/2019,Advertising,Corporate Services - Communications,Omnicom Media Group UK Ltd T/A Manning Gottlieb OMD,318185,449.76,EU Exit: CPG ADM-Advertising,SE1 0SW,VENDOR
"Department for Business, Energy and Industrial Strategy","Department for Business, Energy and Industrial Strategy",25/11/2019,Advertising,Corporate Services - Communications,Omnicom Media Group UK Ltd T/A Manning Gottlieb OMD,318185,454262.98,EU Exit: CPG ADM-Advertising,SE1 0SW,VENDOR
"Department for Business, Energy and Industrial Strategy","Department for Business, Energy and Industrial Strategy",27/11/2019,Purchase of Intangible Software,"Corporate Services - Digital, Data & Technology",SPECIALIST COMPUTER CENTRES (SSC),318186,3347.04,MF Devolved Admin-Purchase of Intangible Software,B11 2LE,VENDOR
"Department for Business, Energy and Industrial Strategy","Department for Business, Energy and Industrial Strategy",27/11/2019,Purchase of Intangible Software,"Corporate Services - Digital, Data & Technology",SPECIALIST COMPUTER CENTRES (SSC),318187,1416,MF Devolved Admin-Purchase of Intangible Software,B11 2LE,VENDOR
"Department for Business, Energy and Industrial Strategy","Department for Business, Energy and Industrial Strategy",04/11/2019,Taxi Services UK,Corporate Services - Commercial & Operations,"Personal Expense, Name Withheld",318220,5,MF Devolved Admin-Taxi Services UK,,EMPLOYEE
"Department for Business, Energy and Industrial Strategy","Department for Business, Energy and Industrial Strategy",04/11/2019,External Training,Corporate Services - Commercial & Operations,"Personal Expense, Name Withheld",318220,29.7,MF Devolved Admin-External Training,,EMPLOYEE
"Department for Business, Energy and Industrial Strategy","Department for Business, Energy and Industrial Strategy",04/11/2019,Rail Travel UK,Corporate Services - Commercial & Operations,"Personal Expense, Name Withheld",318220,42,MF Devolved Admin-Rail Travel UK,,EMPLOYEE
"Department for Business, Energy and Industrial Strategy","Department for Business, Energy and Industrial Strategy",08/11/2019,Subsistence UK,Market Frameworks - Business Frameworks,"Personal Expense, Name Withheld",318225,8.75,MF Devolved Admin-Subsistence UK,,EMPLOYEE
"Department for Business, Energy and Industrial Strategy","Department for Business, Energy and Industrial Strategy",08/11/2019,Subsistence UK,Market Frameworks - Business Frameworks,"Personal Expense, Name Withheld",318225,30.23,MF Devolved Admin-Subsistence UK,,EMPLOYEE
"Department for Business, Energy and Industrial Strategy","Department for Business, Energy and Industrial Strategy",08/11/2019,Taxi Services UK,Market Frameworks - Business Frameworks,"Personal Expense, Name Withheld",318225,40.72,MF Devolved Admin-Taxi Services UK,,EMPLOYEE
"Department for Business, Energy and Industrial Strategy","Department for Business, Energy and Industrial Strategy",04/11/2019,Taxi Services Overseas,Business Sectors - Office for Life Sciences,"Personal Expense, Name Withheld",318236,8.82,MF Devolved Admin-Taxi Services Overseas,,EMPLOYEE
"Department for Business, Energy and Industrial Strategy","Department for Business, Energy and Industrial Strategy",04/11/2019,Subsistence Overseas,Business Sectors - Office for Life Sciences,"Personal Expense, Name Withheld",318236,9.14,MF Devolved Admin-Subsistence Overseas,,EMPLOYEE
"Department for Business, Energy and Industrial Strategy","Department for Business, Energy and Industrial Strategy",04/11/2019,Subsistence Overseas,Business Sectors - Office for Life Sciences,"Personal Expense, Name Withheld",318236,12.31,MF Devolved Admin-Subsistence Overseas,,EMPLOYEE
"Department for Business, Energy and Industrial Strategy","Department for Business, Energy and Industrial Strategy",04/11/2019,Subsistence Overseas,Business Sectors - Office for Life Sciences,"Personal Expense, Name Withheld",318236,16.7,MF Devolved Admin-Subsistence Overseas,,EMPLOYEE
"Department for Business, Energy and Industrial Strategy","Department for Business, Energy and Industrial Strategy",04/11/2019,Hotel & Accommodation Overseas,Business Sectors - Office for Life Sciences,"Personal Expense, Name Withheld",318236,133.36,MF Devolved Admin-Hotel & Accommodation Overseas,,EMPLOYEE
"Department for Business, Energy and Industrial Strategy","Department for Business, Energy and Industrial Strategy",04/11/2019,Hotel & Accommodation Overseas,Business Sectors - Office for Life Sciences,"Personal Expense, Name Withheld",318236,855.23,MF Devolved Admin-Hotel & Accommodation Overseas,,EMPLOYEE
"Department for Business, Energy and Industrial Strategy","Department for Business, Energy and Industrial Strategy",04/11/2019,Rail Travel UK,EU Exit and Analysis - EU Exit & Economic Partnerships,"Personal Expense, Name Withheld",318241,6.48,EU Exit Core BEIS Staff: EU Exit Programme ADM-Rail Travel UK,,EMPLOYEE
